Workbook

Sheet Feuil1
A3: Hauteurs par rapport au sol situé à la base du mât principal
A4: Date | B4: Heure | C4: Direction Ultimeter à 16 m | D4: Direction Davis à 16 m | E4: Rafale max (2,5 s) anémo Davis Monitor2 à 16 m (km/h) | F4: Rafale max (0,5 s à 0,03 s) anémo Ultimeter 800 à 16 m (km/h) puis déplacé à 10 m le 5/04/2008 | G4: Rafale max OMM (calculée sur 3 s) anémo Ultimeter 800 à 16 m (km/h) | H4: Rafale max (2,5 s) anémo Vantage 1 filaire à 16 m (km/h) | I4: A partir du 10/01/2008 si max > 24 km/h, rafale max (< 0,1 s) , anémo Maximum inc à 16 m (km/h), à 17,5 m à partir du 05/04/2008 | J4: Rafale max (2,5 s) anémo Vantage2 radio toit à 3,4 m (km/h) | K4: Rafale max (2,5 )s anémo Vantage2 num radio agro à 2 m (km/h) | L4: Rafale maxi à 16 m (km/h) | M4: Rafale mini à 16 m (km/h) | N4: Moyenne des 3 ou 4 rafales maxi à 16 m (km/h) des 2 rafales à partir du 05/04/2008 | O4: Ecart (+ ou -) à la moyenne des vents max et min à 16 m. Vert = incertitude OMM valide | P4: Rafale max (2,5 s) à 2 m et 3,4 m | Q4: Ecart (+-) rafales max à 3,4 m avec la moyenne des rafales max à 16 m. Rouge= incertitude plus faible entre l'anémo à 3,4 et la moy des max à 16 m qu'entre les anémo à 16 m | R4: Vent moyen maxi/1mn Ultimeter 800 (km/h) | S4: Vent moyen maxi/1mn maxi Davis (km/h) | T4: Ecart vent moyen maxi sur 1mn, Davis par rapport à l'Ultimeter | U4: Vent moyen/10mn maxi Ultimeter 800 (km/h) | V4: Vent moyen/10mn maxi Davis (km/h) | W4: Ecart vent moyen maxi sur 10 mn, Davis par rapport à l'Ultimeter | X4: Vent moyen/24h Ultimeter 800 (km/h) | Y4: Vent moyen/24h maxi Davis (km/h) | Z4: Ecart vent moyen/24h du Davis par rapport à l'Ultimeter | AA4: Anémo Davis concerné par les moyennes (choix dicté par la plus forte valeur Davis à 16 m) | AB4: Max accélération Ultimeter entre 2 relevés instantanés (km/h) | AC4: Max décélération Ultimeter entre 2 relevés instantanés (km/h) | AD4: Rafale ult/mon | AE4: Rafale ult/vtg | AF4: Rafale ult/inc | AG4: Correction rafale Vantage par rapport à anémo Delta T +-1%, +-0,01 m/s, démarrage 0,2m/s, utilisé dans un service national de météo pro | AH4: vantage rafales brutes | AI4: comparaison avec rafales Ultimeter | AJ4: Vent moy/ 10 mn Davis corrigé | AK4: V 10 mn Ultimeter | AL4: Ecart Davis corrigé/ Ultimeter | AM4: filtre 11 km/h/10 mn sur Ecart Davis corrigé/ Ultimeter | AN4: Filtre 11 km/h Vantage non corrigée
A5: 2007-12-15 | B5: 10:04:00 | C5: 36 | D5: E | E5: 61.2 | F5: 57.9 | H5: 53.1 | J5: 46.7 | K5: 35.4 | L5: =MAX(E5:F5,H5:I5) -> 61.2 | M5: =MIN(E5:F5,H5:I5) -> 53.1 | N5: =AVERAGE((E5:F5,H5:I5)) -> 57.4 | O5: =((L5-M5)/2)/N5 -> 7.1% | P5: =MAX(J5:K5) -> 46.7 | Q5: =ABS(((N5-J5))/2/K5) -> 15.1% | AD5: =(F5-E5)/F5 -> -5.7% | AE5: =(F5-H5)/F5 -> 8.3% | AG5: =((0.3264+(H5/3.6)*0.8875))*3.6 -> 48.3
A6: 2007-12-16 | B6: 13:22:00 | C6: 18 | D6: N | E6: 22.5 | F6: 21.7 | H6: 24.1 | J6: 19.3 | K6: 17.7 | L6: 24.1 | M6: 21.7 | N6: =AVERAGE((E6:F6,H6:I6)) -> 22.8 | O6: =((L6-M6)/2)/N6 -> 5.3% | P6: 19.3 | Q6: =ABS(((N6-J6))/2/K6) -> 9.8% | AD6: =(F6-E6)/F6 -> -3.7% | AE6: =(F6-H6)/F6 -> -11.1% | AG6: 22.6
A7: 2007-12-17 | B7: 06:08:00 | C7: 201 | D7: WSW | E7: 16.1 | F7: 17 | H7: 16.1 | J7: 12.9 | K7: 11.3 | L7: 17 | M7: 16.1 | N7: =AVERAGE((E7:F7,H7:I7)) -> 16.4 | O7: 2.7% | P7: 12.9 | Q7: 15.5% | AD7: 5.3% | AE7: 5.3% | AG7: 15.5
A8: 2007-12-18 | B8: 13:07:00 | C8: 178 | D8: WSW | E8: 12.9 | F8: 12.1 | G8: 11.8 | H8: 14.5 | J8: 9.7 | K8: 11.3 | L8: 14.5 | M8: 12.1 | N8: =AVERAGE((E8:F8,H8:I8)) -> 13.2 | O8: 9.1% | P8: 11.3 | Q8: 15.3% | R8: 9.2 | S8: 9.7 | T8: =(S8-R8)/R8 -> 5.4% | U8: 5.72 | V8: 5.6 | W8: =(V8-U8)/U8 -> -2.1% | X8: 1.72 | Y8: 1.31 | Z8: =(Y8-X8)/X8 -> -23.6% | AA8: vtg | AD8: -6.6% | AE8: -19.8% | AG8: 14.0 | AJ8: =((0.3264+(V8/3.6)*0.8875))*3.6 -> 6.1 | AK8: =U8 -> 5.72 | AL8: =(AJ8-AK8)/AK8 -> 7.43% | AM8: =IF(AK8>11,AL8,"") -> 
A9: 2007-12-19 | B9: 12:28:00 | C9: 35 | D9: N | E9: 11.3 | F9: 12.3 | G9: 12.1 | H9: 12.9 | J9: 9.7 | K9: 8 | L9: 12.9 | M9: 11.3 | N9: =AVERAGE((E9:F9,H9:I9)) -> 12.2 | O9: 6.6% | P9: 9.7 | Q9: 15.4% | R9: 9.1 | S9: 9.7 | T9: =(S9-R9)/R9 -> 6.6% | U9: 6.58 | V9: 6.58 | W9: =(V9-U9)/U9 -> 0.0% | X9: 3.34 | Y9: 1.13 | Z9: =(Y9-X9)/X9 -> -66.3% | AA9: vtg | AD9: 8.1% | AE9: -4.9% | AG9: 12.6 | AJ9: 7.0 | AK9: =U9 -> 6.58 | AL9: =(AJ9-AK9)/AK9 -> 6.61% | AM9: =IF(AK9>11,AL9,"") -> 
A10: 2007-12-20 | B10: 12:23:00 | C10: 80 | D10: E | E10: 24.1 | F10: 20.7 | G10: 20.4 | H10: 22.5 | J10: 16.1 | K10: 16.1 | L10: 24.1 | M10: 20.7 | N10: =AVERAGE((E10:F10,H10:I10)) -> 22.4 | O10: 7.6% | P10: 16.1 | Q10: 19.7% | R10: 14 | S10: 16.1 | T10: 15.0% | U10: 11.3 | V10: 11.29 | W10: -0.1% | X10: 5.28 | Y10: 2.73 | Z10: -48.3% | AA10: mon | AD10: -16.4% | AE10: -8.7% | AG10: 21.1 | AJ10: 11.2 | AK10: 11.3 | AL10: -0.93% | AM10: =IF(AK10>11,AL10,"") -> -0.93% | AN10: =IF(AK10>11,W10,"") -> -0.09%
A11: 2007-12-21 | B11: 14:26:00 | C11: 57 | D11: ENE | E11: 41.8 | F11: 37.8 | G11: 35.3 | H11: 35.4 | J11: 33.8 | K11: 33.8 | L11: 41.8 | M11: 35.4 | N11: =AVERAGE((E11:F11,H11:I11)) -> 38.3 | O11: 8.3% | P11: 33.8 | Q11: 6.7% | R11: 26.5 | S11: 29 | T11: 9.4% | U11: 19.9 | V11: 22.03 | W11: 10.7% | X11: 8.02 | Y11: 8.17 | Z11: 1.9% | AA11: mon | AD11: -10.6% | AE11: 6.3% | AG11: 32.6 | AJ11: 20.7 | AK11: 19.9 | AL11: 4.15% | AM11: 4.15% | AN11: 10.70%
A12: 2007-12-22 | B12: 06:49:00 | C12: 22 | D12: ENE | E12: 40.2 | F12: 37.4 | G12: 33.3 | H12: 35.4 | J12: 32.2 | K12: 22.5 | L12: 40.2 | M12: 35.4 | N12: =AVERAGE((E12:F12,H12:I12)) -> 37.7 | O12: 6.4% | P12: 32.2 | Q12: 12.1% | R12: 21.9 | S12: 22.5 | T12: 2.7% | U12: 16.04 | V12: 17.22 | W12: 7.4% | X12: 8.84 | Y12: 7.50 | Z12: -15.1% | AA12: mon | AD12: -7.5% | AE12: 5.3% | AG12: 32.6 | AJ12: 16.5 | AK12: 16.04 | AL12: 2.60% | AM12: 2.60% | AN12: 7.36%
A13: 2007-12-23 | B13: 19:51:00 | C13: 25 | D13: NE | E13: 9.7 | F13: 11.9 | G13: 11.2 | H13: 12.9 | J13: 8 | K13: 8 | L13: 12.9 | M13: 9.7 | N13: =AVERAGE((E13:F13,H13:I13)) -> 11.5 | O13: 13.9% | P13: =MAX(J13:K13) -> 8 | Q13: 21.9% | R13: 7.5 | S13: 6.4 | T13: -14.7% | U13: 5.26 | V13: 3.36 | W13: -36.1% | X13: 2.26 | Y13: 0.72 | Z13: -68.3% | AA13: vtg | AD13: 18.5% | AE13: -8.4% | AG13: 12.6 | AJ13: 4.2 | AK13: 5.26 | AL13: -20.97%
A14: 2007-12-24 | B14: 13:51:00 | C14: 29 | D14: N | E14: 9.7 | F14: 11.5 | G14: 11.3 | H14: 12.9 | J14: 8 | K14: 8 | L14: 12.9 | M14: 9.7 | N14: =AVERAGE((E14:F14,H14:I14)) -> 11.4 | O14: 14.1% | P14: 8 | Q14: 21.0% | R14: 8.4 | S14: 9.7 | T14: 15.5% | U14: 6.08 | V14: 5.6 | W14: -7.9% | X14: 3.18 | Y14: 1.60 | Z14: -49.6% | AA14: vtg | AD14: 15.7% | AE14: -12.2% | AG14: 12.6 | AJ14: 6.1 | AK14: 6.08 | AL14: 1.07%
A15: 2007-12-25 | B15: 13:41:00 | C15: 106 | D15: NE | E15: 9.7 | F15: 11 | G15: 10.7 | H15: 11.3 | J15: 11.3 | K15: 8 | L15: 11.3 | M15: 9.7 | N15: =AVERAGE((E15:F15,H15:I15)) -> 10.7 | O15: 7.5% | P15: 11.3 | Q15: 4.0% | R15: 8.1 | S15: 8 | T15: -1.2% | U15: 7.29 | V15: 5.44 | W15: -25.4% | X15: 3.49 | Y15: 1.41 | Z15: -59.5% | AA15: vtg | AD15: 11.8% | AE15: -2.7% | AG15: 11.2 | AJ15: 6.0 | AK15: 7.29 | AL15: -17.65%
A16: 2007-12-26 | B16: 13:56:00 | C16: 99 | D16: NE | E16: 11.3 | F16: 11.6 | G16: 11.1 | H16: 12.9 | J16: 11.3 | K16: 9.7 | L16: 12.9 | M16: 11.3 | N16: =AVERAGE((E16:F16,H16:I16)) -> 11.9 | O16: 6.7% | P16: 11.3 | Q16: 3.3% | R16: 9.2 | S16: 9.7 | T16: 5.4% | U16: 6.77 | V16: 6.41 | W16: -5.3% | X16: 3.44 | Y16: 1.24 | Z16: -63.8% | AA16: vtg | AD16: 2.6% | AE16: -11.2% | AG16: 12.6 | AJ16: 6.9 | AK16: 6.77 | AL16: 1.39%
A17: 2007-12-27 | B17: 06:31:00 | C17: 329 | D17: NE | E17: 9.7 | F17: 10.2 | G17: 10.1 | H17: 11.3 | J17: 8 | K17: 9.7 | L17: 11.3 | M17: 9.7 | N17: =AVERAGE((E17:F17,H17:I17)) -> 10.4 | O17: 7.7% | P17: 9.7 | Q17: 12.4% | R17: 7.7 | S17: 9.7 | T17: 26.0% | U17: 6.09 | V17: 6.08 | W17: -0.2% | X17: 2.73 | Y17: 1.33 | Z17: -51.2% | AA17: vtg | AD17: 4.9% | AE17: -10.8% | AG17: 11.2 | AJ17: 6.6 | AK17: 6.09 | AL17: 7.90%
A18: 2007-12-28 | B18: 13:56:00 | C18: 36 | D18: E | E18: 14.5 | F18: 13.8 | G18: 13.3 | H18: 14.5 | J18: 11.3 | K18: 11.3 | L18: 14.5 | M18: 13.8 | N18: =AVERAGE((E18:F18,H18:I18)) -> 14.3 | O18: 2.5% | P18: 11.3 | Q18: 13.1% | R18: 10.6 | S18: 11.3 | T18: 6.6% | U18: 7.47 | V18: 7.72 | W18: 3.3% | X18: 3.19 | Y18: 1.72 | Z18: -46.0% | AA18: vtg | AD18: -5.1% | AE18: -5.1% | AG18: 14.0 | AJ18: 8.0 | AK18: 7.47 | AL18: 7.45%
A19: 2007-12-29 | B19: 14:12:00 | C19: 270 | D19: W | E19: 24.1 | F19: 25.6 | G19: 24.6 | H19: 27.3 | J19: 22.5 | K19: 20.9 | L19: 27.3 | M19: 24.1 | N19: =AVERAGE((E19:F19,H19:I19)) -> 25.7 | O19: 6.2% | P19: 22.5 | Q19: 7.6% | R19: 17.6 | S19: 19.3 | T19: 9.7% | U19: 13.91 | V19: 14.98 | W19: 7.7% | X19: 5.51 | Y19: 3.32 | Z19: -39.7% | AA19: vtg | AD19: 5.9% | AE19: -6.6% | AG19: 25.4 | AJ19: 14.5 | AK19: 13.91 | AL19: 4.02% | AM19: 4.02% | AN19: 7.69%
A20: 2007-12-30 | B20: 08:14:00 | C20: 296 | D20: W | E20: 40.2 | F20: 44.3 | G20: 38.7 | H20: 41.8 | J20: 37 | K20: 29.3 | L20: 44.3 | M20: 40.2 | N20: =AVERAGE((E20:F20,H20:I20)) -> 42.1 | O20: 4.9% | P20: 37 | Q20: 8.7% | R20: 27.8 | S20: 30.6 | T20: 10.1% | U20: 21.87 | V20: 23.64 | W20: 8.1% | X20: 7.96 | Y20: 7.28 | Z20: -8.6% | AA20: vtg | AD20: 9.3% | AE20: 5.6% | AG20: 38.3 | AJ20: 22.2 | AK20: 21.87 | AL20: 1.31% | AM20: 1.31% | AN20: 8.09%
A21: 2007-12-31 | B21: 07:07:00 | C21: 260 | D21: W | E21: 24.1 | F21: 26 | G21: 23.8 | H21: 27.3 | J21: 22.5 | K21: 20.9 | L21: 27.3 | M21: 24.1 | N21: =AVERAGE((E21:F21,H21:I21)) -> 25.8 | O21: 6.2% | P21: 22.5 | Q21: 7.9% | R21: 18 | S21: 19.3 | T21: 7.2% | U21: 14.94 | V21: 14.18 | W21: -5.1% | X21: 6.84 | Y21: 5.53 | Z21: -19.1% | AA21: mon | AD21: 7.3% | AE21: -5.0% | AG21: 25.4 | AJ21: 13.8 | AK21: 14.94 | AL21: -7.90% | AM21: -7.90% | AN21: -5.09%
A22: 2008-01-01 | B22: 11:14:00 | C22: 12 | D22: E | E22: 25.7 | F22: 23.7 | G22: 22.5 | H22: 20.9 | J22: 19.3 | K22: 16.1 | L22: 25.7 | M22: 20.9 | N22: =AVERAGE((E22:F22,H22:I22)) -> 23.4 | O22: 10.2% | P22: 19.3 | Q22: 12.8% | R22: 16.3 | S22: 17.7 | T22: 8.6% | U22: 13 | V22: 14.34 | W22: 10.3% | X22: 4.12 | Y22: 2.93 | Z22: -28.8% | AA22: mon | AD22: -8.4% | AE22: 11.8% | AG22: 19.7 | AJ22: 13.9 | AK22: 13 | AL22: 6.94% | AM22: 6.94% | AN22: 10.31%
A23: 2008-01-02 | B23: 23:30:00 | C23: 23 | D23: E | E23: 67.6 | F23: 61.2 | G23: 56.6 | H23: 61.2 | J23: 48.3 | K23: 38.6 | L23: 67.6 | M23: 61.2 | N23: =AVERAGE((E23:F23,H23:I23)) -> 63.3 | O23: 5.1% | P23: 48.3 | Q23: 19.5% | R23: 29.3 | S23: 32.2 | T23: 9.9% | U23: 23.52 | V23: 26.7 | W23: 13.5% | X23: 12.56 | Y23: 13.08 | Z23: 4.2% | AA23: mon | AD23: -10.5% | AE23: 0.0% | AG23: 55.5 | AJ23: 24.9 | AK23: 23.52 | AL23: 5.75% | AM23: 5.75% | AN23: 13.52%
A24: 2008-01-03 | B24: 01:55:00 | C24: 30 | D24: E | E24: 67.6 | F24: 63.8 | G24: 55.3 | H24: 56.3 | J24: 48.3 | K24: 41.8 | L24: 67.6 | M24: 56.3 | N24: =AVERAGE((E24:F24,H24:I24)) -> 62.6 | O24: 9.0% | P24: 48.3 | Q24: 17.1% | R24: 38.6 | S24: 45.1 | T24: 16.8% | U24: 28.78 | V24: 32.2 | W24: 11.9% | X24: 18.35 | Y24: 20.30 | Z24: 10.7% | AA24: mon | AD24: -6.0% | AE24: 11.8% | AG24: 51.1 | AJ24: 29.8 | AK24: 28.78 | AL24: 3.38% | AM24: 3.38% | AN24: 11.88%
A25: 2008-01-04 | B25: 03:45:00 | C25: 19 | D25: NE | E25: 59.5 | F25: 59.4 | G25: 49.4 | H25: 51.5 | J25: 41.8 | K25: 40.2 | L25: 59.5 | M25: 51.5 | N25: =AVERAGE((E25:F25,H25:I25)) -> 56.8 | O25: 7.0% | P25: 41.8 | Q25: 18.7% | R25: 32.2 | S25: 37 | T25: 14.9% | U25: 23.21 | V25: 26.05 | W25: 12.2% | X25: 15.86 | Y25: 17.57 | Z25: 10.8% | AA25: mon | AD25: -0.2% | AE25: 13.3% | AG25: 46.9 | AJ25: 24.3 | AK25: 23.21 | AL25: 4.67% | AM25: 4.67% | AN25: 12.24%
A26: 2008-01-05 | B26: 00:06:00 | C26: 71 | D26: E | E26: 29.3 | F26: 24.4 | G26: 23.1 | H26: 22.5 | J26: 17.7 | K26: 19.3 | L26: 29.3 | M26: 22.5 | N26: =AVERAGE((E26:F26,H26:I26)) -> 25.4 | O26: 13.4% | P26: 19.3 | Q26: 19.9% | R26: 17 | S26: 19.3 | T26: 13.5% | U26: 13.9 | V26: 15.3 | W26: 10.1% | X26: 3.38 | Y26: 2.23 | Z26: -33.9% | AA26: vtg | AD26: -20.1% | AE26: 7.8% | AG26: 21.1 | AJ26: 14.8 | AK26: 13.9 | AL26: 6.14% | AM26: 6.14% | AN26: 10.07%
A27: 2008-01-06 | B27: 14:11:00 | C27: 285 | D27: W | E27: 40.2 | F27: 42.6 | G27: 38.4 | H27: 46.7 | J27: 37 | K27: 33.8 | L27: 46.7 | M27: 40.2 | N27: =AVERAGE((E27:F27,H27:I27)) -> 43.2 | O27: 7.5% | P27: 37 | Q27: 9.1% | R27: 28.7 | S27: 32.2 | T27: 12.2% | U27: 22.4 | V27: 24.28 | W27: 8.4% | X27: 12.78 | Y27: 12.68 | Z27: -0.8% | AA27: vtg | AD27: 5.6% | AE27: -9.6% | AG27: 42.6 | AJ27: 22.7 | AK27: 22.4 | AL27: 1.44% | AM27: 1.44% | AN27: 8.39%
A28: 2008-01-07 | B28: 14:37:00 | C28: 279 | D28: W | E28: 49.9 | F28: 51.5 | G28: 47.2 | H28: 51.5 | J28: 45 | K28: 41.8 | L28: 51.5 | M28: 49.9 | N28: =AVERAGE((E28:F28,H28:I28)) -> 51.0 | O28: 1.6% | P28: 45 | Q28: 7.1% | R28: 33.7 | S28: 37 | T28: 9.8% | U28: 25.46 | V28: 28 | W28: 10.0% | X28: 16.91 | Y28: 18.42 | Z28: 9.0% | AA28: vtg | AD28: 3.1% | AE28: 0.0% | AG28: 46.9 | AJ28: 26.0 | AK28: 25.46 | AL28: 2.22% | AM28: 2.22% | AN28: 9.98%
A29: 2008-01-08 | B29: 00:04:00 | C29: 261 | D29: W | E29: 25.6 | F29: 27.7 | G29: 27 | H29: 29.3 | J29: 19.3 | K29: 17.7 | L29: 29.3 | M29: 25.6 | N29: =AVERAGE((E29:F29,H29:I29)) -> 27.5 | O29: 6.7% | P29: =MAX(J29:K29) -> 19.3 | Q29: 23.3% | R29: 18.2 | S29: 19.3 | T29: =(S29-R29)/R29 -> 6.0% | U29: 13.74 | V29: 14.02 | W29: =(V29-U29)/U29 -> 2.0% | X29: 4.91 | Y29: 3.00 | Z29: -38.8% | AA29: vtg | AD29: 7.6% | AE29: -5.8% | AG29: 27.2 | AJ29: 13.6 | AK29: 13.74 | AL29: -0.89% | AM29: -0.89% | AN29: 2.04%
A30: 2008-01-09 | B30: 02:17:00 | C30: 237 | D30: S | E30: 9.8 | F30: 9.8 | G30: 9.8 | H30: 11.3 | J30: 6.4 | K30: 6.4 | L30: 11.3 | M30: 9.8 | N30: =AVERAGE((E30:F30,H30:I30)) -> 10.3 | O30: 7.3% | P30: =MAX(J30:K30) -> 6.4 | Q30: 30.5% | R30: 8.3 | S30: 8 | T30: -3.6% | U30: 5.39 | V30: 4.48 | W30: -16.9% | X30: 1.88 | Y30: 0.55 | Z30: -70.6% | AA30: vtg | AD30: 0.0% | AE30: -15.3% | AG30: 11.2 | AJ30: 5.2 | AK30: 5.39 | AL30: -4.43%
A31: 2008-01-10 | B31: 20:12:00 | C31: 42 | D31: E | E31: 22.5 | F31: 18.9 | G31: 18.3 | H31: 17.7 | I31: 25 | J31: 16.1 | K31: 12.9 | L31: 25 | M31: 17.7 | N31: =AVERAGE((E31:F31,H31:I31)) -> 21.0 | O31: 17.4% | P31: =MAX(J31:K31) -> 16.1 | Q31: 19.1% | R31: 13.5 | S31: 14.5 | T31: 7.4% | U31: 9.04 | V31: 10.16 | W31: 12.4% | X31: 4.57 | Y31: 4.67 | Z31: 2.1% | AA31: mon | AD31: -19.0% | AE31: 6.3% | AF31: =(F31-I31)/F31 -> -32.3% | AG31: 16.9 | AJ31: 10.2 | AK31: 9.04 | AL31: 12.74%
A32: 2008-01-11 | B32: 15:18:00 | C32: 149 | D32: S | E32: 41.8 | F32: 38.8 | G32: 35.7 | H32: 37 | I32: 41.5 | J32: 33.8 | K32: 35.4 | L32: =MAX(E32:F32,H32:I32) -> 41.8 | M32: =MIN(E32:F32,H32:I32) -> 37 | N32: =AVERAGE((E32:F32,H32:I32)) -> 39.8 | O32: 6.0% | P32: =MAX(J32:K32) -> 35.4 | Q32: 8.4% | R32: 19.3 | S32: 24.1 | T32: 24.9% | U32: 13.33 | V32: 14.18 | W32: 6.4% | X32: 8.22 | Y32: 8.51 | Z32: 3.6% | AA32: mon | AD32: -7.7% | AE32: 4.6% | AF32: -7.0% | AG32: 34.0 | AJ32: 13.8 | AK32: 13.33 | AL32: 3.22% | AM32: 3.22% | AN32: 6.38%
A33: 2008-01-12 | B33: 12:20:00 | C33: 284 | D33: W | E33: 62.8 | F33: 67.6 | G33: 62.4 | H33: 72.4 | I33: 76.5 | J33: 64.4 | K33: 51.5 | L33: 76.5 | M33: 62.8 | N33: =AVERAGE((E33:F33,H33:I33)) -> 69.8 | O33: 9.8% | P33: 64.4 | Q33: 5.3% | R33: 41.2 | S33: 48.3 | T33: 17.2% | U33: 33.01 | V33: 35.73 | W33: 8.2% | X33: 21.5 | Y33: 23.04 | Z33: 7.2% | AA33: vtg | AD33: 7.1% | AE33: -7.1% | AF33: -13.2% | AG33: 65.4 | AJ33: 32.9 | AK33: 33.01 | AL33: -0.38% | AM33: -0.38% | AN33: 8.24%
A34: 2008-01-13 | B34: 01:27:00 | C34: 306 | D34: NW | E34: 45 | F34: 47 | G34: 43.5 | H34: 48.3 | I34: 52.5 | J34: 41.8 | K34: 35.4 | L34: 52.5 | M34: 45 | N34: =AVERAGE((E34:F34,H34:I34)) -> 48.2 | O34: 7.8% | P34: 41.8 | Q34: 9.0% | R34: 28.2 | S34: 30.6 | T34: 8.5% | U34: 22.9 | V34: 24.6 | W34: 7.4% | X34: 7.12 | Y34: 4.69 | Z34: -34.1% | AA34: vtg | AD34: 4.3% | AE34: -2.8% | AF34: -11.7% | AG34: 44.0 | AJ34: 23.0 | AK34: 22.9 | AL34: 0.47% | AM34: 0.47% | AN34: 7.42%
A35: 2008-01-14 | B35: 15:14:00 | C35: 43 | D35: E | E35: 37 | F35: 34.6 | G35: 30.7 | H35: 30.6 | I35: 39.5 | J35: 25.7 | K35: 29 | L35: =MAX(E35:F35,H35:I35) -> 39.5 | M35: =MIN(E35:F35,H35:I35) -> 30.6 | N35: =AVERAGE((E35:F35,H35:I35)) -> 35.4 | O35: =((L35-M35)/2)/N35 -> 12.6% | P35: =MAX(J35:K35) -> 29 | Q35: =ABS(((N35-J35))/2/K35) -> 16.8% | R35: 21 | S35: 24.1 | T35: 14.8% | U35: 16.09 | V35: 17.86 | W35: 11.0% | X35: 7.67 | Y35: 7.53 | Z35: -1.8% | AA35: Mon | AD35: -6.9% | AE35: 11.6% | AF35: -14.2% | AG35: 28.3 | AJ35: 17.0 | AK35: 16.09 | AL35: 5.82% | AM35: 5.82% | AN35: 11.00%
A36: 2008-01-15 | B36: 23:23:00 | C36: 106 | D36: SE | E36: 24.1 | F36: 24.9 | G36: 22.5 | H36: 25.7 | I36: 26 | J36: 17.7 | K36: 14.5 | L36: 26 | M36: 24.1 | N36: =AVERAGE((E36:F36,H36:I36)) -> 25.2 | O36: =((L36-M36)/2)/N36 -> 3.8% | P36: 17.7 | Q36: 25.8% | R36: 14.2 | S36: 14.5 | T36: 2.1% | U36: 9.68 | V36: 10.32 | W36: 6.6% | X36: 3.41 | Y36: 2.87 | Z36: -15.9% | AA36: Vtg | AD36: 3.2% | AE36: -3.2% | AF36: -4.4% | AG36: 24.0 | AJ36: 10.3 | AK36: 9.68 | AL36: 6.76%
A37: 2008-01-16 | B37: 05:26:00 | C37: 144 | D37: W | E37: 37 | F37: 38.7 | G37: 35.4 | H37: 38.6 | I37: 38.6 | J37: 35.4 | K37: 25.7 | L37: =MAX(E37:F37,H37:I37) -> 38.7 | M37: =MIN(E37:F37,H37:I37) -> 37 | N37: =AVERAGE((E37:F37,H37:I37)) -> 38.2 | O37: 2.2% | P37: 35.4 | Q37: 5.5% | R37: 22 | S37: 24.1 | T37: 9.5% | U37: 18.28 | V37: 19.3 | W37: 5.6% | X37: 8.97 | Y37: 8.77 | Z37: -2.3% | AA37: Vtg | AD37: 4.4% | AE37: 0.3% | AF37: 0.3% | AG37: =((0.3264+(H37/3.6)*0.8875))*3.6 -> 35.4 | AJ37: 18.3 | AK37: 18.28 | AL37: 0.13% | AM37: 0.13% | AN37: 5.58%
A38: 2008-01-17 | B38: 02:49:00 | C38: 310 | D38: W | E38: 53.1 | F38: 57.7 | G38: 51.5 | H38: 59.5 | I38: 63.5 | J38: 49.9 | K38: 38.6 | L38: 63.5 | M38: 53.1 | N38: =AVERAGE((E38:F38,H38:I38)) -> 58.5 | O38: 8.9% | P38: 49.9 | Q38: 11.1% | R38: 35.9 | S38: 38.6 | T38: 7.5% | U38: 29.54 | V38: 32.52 | W38: 10.1% | X38: 17.48 | Y38: 18.60 | Z38: 6.4% | AA38: Vtg | AD38: 8.0% | AE38: -3.1% | AF38: -10.1% | AG38: 54.0 | AJ38: 30.0 | AK38: 29.54 | AL38: 1.68% | AM38: 1.68% | AN38: 10.09%
A39: 2008-01-18 | B39: 03:11:00 | C39: 300 | D39: NW | E39: 38.6 | F39: 42.5 | G39: 37 | H39: 40.2 | I39: 40.5 | J39: 35.4 | K39: 29.3 | L39: =MAX(E39:F39,H39:I39) -> 42.5 | M39: =MIN(E39:F39,H39:I39) -> 38.6 | N39: =AVERAGE((E39:F39,H39:I39)) -> 40.5 | O39: =((L39-M39)/2)/N39 -> 4.8% | P39: =MAX(J39:K39) -> 35.4 | Q39: =ABS(((N39-J39))/2/K39) -> 8.6% | R39: 24.2 | S39: 25.7 | T39: 6.2% | U39: 18.39 | V39: 20.26 | W39: 10.2% | X39: 6.06 | Y39: 5.15 | Z39: -15.0% | AA39: Vtg | AD39: 9.2% | AE39: 5.4% | AF39: 4.7% | AG39: 36.9 | AJ39: 19.2 | AK39: 18.39 | AL39: 4.16% | AM39: 4.16% | AN39: 10.17%
A40: 2008-01-19 | B40: 14:33:00 | C40: 216 | D40: S | E40: 17.7 | F40: 17.6 | G40: 17 | H40: 20.9 | J40: 16.1 | K40: 14.5 | L40: 20.9 | M40: 17.6 | N40: =AVERAGE((E40:F40,H40:I40)) -> 18.7 | O40: 8.8% | P40: 16.1 | Q40: 9.1% | R40: 11.1 | S40: 12.9 | T40: 16.2% | U40: 8.2 | V40: 9.18 | W40: 12.0% | X40: 2.87 | Y40: 1.82 | Z40: -36.5% | AA40: Vtg | AD40: -0.6% | AE40: -18.8% | AG40: 19.7 | AJ40: =((0.3264+(V40/3.6)*0.8875))*3.6 -> 9.3 | AK40: 8.2 | AL40: 13.69%
A41: 2008-01-20 | B41: 15:38:00 | C41: 188 | D41: S | E41: 17.7 | F41: 17 | G41: 16.5 | H41: 22.5 | J41: 12.9 | K41: 14.5 | L41: 22.5 | M41: 17 | N41: =AVERAGE((E41:F41,H41:I41)) -> 19.1 | O41: 14.4% | P41: 14.5 | Q41: 21.3% | R41: 10.8 | S41: 12.9 | T41: 19.4% | U41: 7.05 | V41: 9 | W41: 27.7% | X41: 3.05 | Y41: 1.82 | Z41: -40.3% | AA41: Vtg | AD41: -4.1% | AE41: -32.4% | AG41: 21.1 | AJ41: 9.2 | AK41: 7.05 | AL41: 29.97%
A42: 2008-01-21 | B42: 13:46:00 | C42: 302 | D42: W | E42: 32.2 | F42: 31.2 | G42: 30.5 | H42: 33.8 | I42: 34 | J42: 32.2 | K42: 22.5 | L42: =MAX(E42:F42,H42:I42) -> 34 | M42: =MIN(E42:F42,H42:I42) -> 31.2 | N42: =AVERAGE((E42:F42,H42:I42)) -> 32.8 | O42: =((L42-M42)/2)/N42 -> 4.3% | P42: =MAX(J42:K42) -> 32.2 | Q42: =ABS(((N42-J42))/2/K42) -> 1.3% | R42: 20.4 | S42: 24.1 | T42: 18.1% | U42: 17.43 | V42: 19.3 | W42: 10.7% | X42: 7.3 | Y42: 8.13 | Z42: 11.4% | AA42: Vtg | AD42: -3.2% | AE42: -8.3% | AF42: =(F42-I42)/F42 -> -9.0% | AG42: 31.2 | AJ42: 18.3 | AK42: 17.43 | AL42: 5.01% | AM42: 5.01% | AN42: =IF(AK42>11,W42,"") -> 10.73%
A43: 2008-01-22 | B43: 05:12:00 | C43: 306 | D43: W | E43: 80.5 | F43: 91.8 | G43: 79.9 | H43: 85.3 | I43: 92.6 | J43: 74 | K43: 61.2 | L43: 92.6 | M43: 80.5 | N43: =AVERAGE((E43:F43,H43:I43)) -> 87.6 | O43: =((L43-M43)/2)/N43 -> 6.9% | P43: =MAX(J43:K43) -> 74 | Q43: =ABS(((N43-J43))/2/K43) -> 11.1% | R43: 49.6 | S43: 54.7 | T43: 10.3% | U43: 43.34 | V43: 47.97 | W43: 10.7% | X43: 26.31 | Y43: 29.03 | Z43: 10.3% | AA43: Vtg | AB43: 21.3 | AC43: 14.5 | AD43: 12.3% | AE43: 7.1% | AF43: -0.9% | AG43: 76.9 | AJ43: 43.7 | AK43: 43.34 | AL43: 0.94% | AM43: 0.94% | AN43: 10.68%
A44: 2008-01-23 | B44: 01:25:00 | C44: 262 | D44: SW | E44: 24.1 | F44: 25.3 | G44: 23.8 | H44: 25.7 | I44: 29.5 | J44: 20.9 | K44: 19.3 | L44: =MAX(E44:F44,H44:I44) -> 29.5 | M44: =MIN(E44:F44,H44:I44) -> 24.1 | N44: =AVERAGE((E44:F44,H44:I44)) -> 26.2 | O44: =((L44-M44)/2)/N44 -> 10.3% | P44: =MAX(J44:K44) -> 20.9 | Q44: =ABS(((N44-J44))/2/K44) -> 13.6% | R44: 17.4 | S44: 19.3 | T44: 10.9% | U44: 14.1 | V44: 15.62 | W44: 10.8% | X44: 4.75 | Y44: 4.27 | Z44: -10.2% | AA44: Vtg | AD44: 4.7% | AE44: -1.6% | AF44: -16.6% | AG44: 24.0 | AJ44: 15.0 | AK44: 14.1 | AL44: 6.65% | AM44: 6.65% | AN44: 10.78%
A45: 2008-01-24 | B45: 23:34:00 | C45: 272 | D45: W | E45: 24.1 | F45: 27.4 | G45: 24.1 | H45: 27.3 | I45: 27.5 | J45: 22.5 | K45: 17.7 | L45: =MAX(E45:F45,H45:I45) -> 27.5 | M45: =MIN(E45:F45,H45:I45) -> 24.1 | N45: =AVERAGE((E45:F45,H45:I45)) -> 26.6 | O45: =((L45-M45)/2)/N45 -> 6.4% | P45: =MAX(J45:K45) -> 22.5 | Q45: =ABS(((N45-J45))/2/K45) -> 11.5% | R45: 17.9 | S45: 19.3 | T45: 7.8% | U45: 12.74 | V45: 14.5 | W45: 13.8% | X45: 6.17 | Y45: 4.76 | Z45: -22.9% | AA45: Vtg | AD45: 12.0% | AE45: 0.4% | AF45: -0.4% | AG45: 25.4 | AJ45: 14.0 | AK45: 12.74 | AL45: 10.23% | AM45: 10.23% | AN45: 13.81%
A46: 2008-01-25 | B46: 01:22:00 | C46: 302 | D46: W | E46: 32.2 | F46: 34.7 | G46: 33.8 | H46: 37 | I46: 38.2 | J46: 29.3 | K46: 20.9 | L46: 38.2 | M46: 32.2 | N46: =AVERAGE((E46:F46,H46:I46)) -> 35.5 | O46: 8.4% | P46: 29.3 | Q46: 14.9% | R46: 22.3 | S46: 24.1 | T46: 8.1% | U46: 18.28 | V46: 19.46 | W46: 6.5% | X46: 4.36 | Y46: 3.25 | Z46: -25.4% | AA46: Vtg | AD46: 7.2% | AE46: -6.6% | AF46: -10.1% | AG46: 34.0 | AJ46: 18.4 | AK46: 18.28 | AL46: 0.91% | AM46: 0.91% | AN46: 6.46%
A47: 2008-01-26 | B47: 22:48:00 | C47: 260 | D47: W | E47: 24.1 | F47: 23.9 | G47: 23 | H47: 25.7 | I47: 27 | J47: 16.1 | K47: 14.5 | L47: =MAX(E47:F47,H47:I47) -> 27 | M47: =MIN(E47:F47,H47:I47) -> 23.9 | N47: =AVERAGE((E47:F47,H47:I47)) -> 25.2 | O47: =((L47-M47)/2)/N47 -> 6.2% | P47: =MAX(J47:K47) -> 16.1 | Q47: 31.3% | R47: 16.2 | S47: 17.7 | T47: 9.3% | U47: 11.22 | V47: 12.58 | W47: 12.1% | X47: 4.31 | Y47: 2.95 | Z47: -31.5% | AA47: Vtg | AD47: -0.8% | AE47: -7.5% | AF47: -13.0% | AG47: 24.0 | AJ47: 12.3 | AK47: 11.22 | AL47: 9.98% | AM47: 9.98% | AN47: 12.12%
A48: 2008-01-27 | B48: 14:40:00 | C48: 313 | D48: W | E48: 38.6 | F48: 38.4 | G48: 35.9 | H48: 38.6 | I48: 39 | J48: 40.2 | K48: 32.2 | L48: 39 | M48: 38.4 | N48: =AVERAGE((E48:F48,H48:I48)) -> 38.7 | O48: 0.8% | P48: 40.2 | Q48: 2.4% | R48: 24.1 | S48: 27.4 | T48: 13.7% | U48: 16.74 | V48: 18.66 | W48: 11.5% | X48: 7.99 | Y48: 8.40 | Z48: 5.2% | AA48: Vtg | AB48: 5.6 | AC48: 3.8 | AD48: -0.5% | AE48: -0.5% | AF48: -1.6% | AG48: 35.4 | AJ48: 17.7 | AK48: 16.74 | AL48: 5.95% | AM48: 5.95% | AN48: 11.47%
A49: 2008-01-28 | B49: 14:09:00 | C49: 185 | D49: SW | E49: 16.1 | F49: 15.3 | G49: 14.4 | H49: 16.1 | J49: 12.9 | K49: 12.9 | L49: 16.1 | M49: 15.3 | N49: =AVERAGE((E49:F49,H49:I49)) -> 15.8 | O49: 2.5% | P49: 12.9 | Q49: 11.4% | R49: 10.7 | S49: 12.9 | T49: 20.6% | U49: 7.93 | V49: 9.17 | W49: 15.6% | X49: 2.65 | Y49: 1.86 | Z49: -29.9% | AA49: Vtg | AD49: -5.2% | AE49: -5.2% | AG49: 15.5 | AJ49: 9.3 | AK49: 7.93 | AL49: 17.45%
A50: 2008-01-29 | B50: 11:54:00 | C50: 84 | D50: NE | E50: 16.1 | F50: 17.4 | G50: 16.6 | H50: 17.7 | J50: 12.9 | K50: 14.5 | L50: =MAX(E50:F50,H50:I50) -> 17.7 | M50: =MIN(E50:F50,H50:I50) -> 16.1 | N50: =AVERAGE((E50:F50,H50:I50)) -> 17.1 | O50: =((L50-M50)/2)/N50 -> 4.7% | P50: =MAX(J50:K50) -> 14.5 | Q50: =ABS(((N50-J50))/2/K50) -> 14.4% | R50: 12.3 | S50: 12.9 | T50: 4.9% | U50: 8.16 | V50: 9.52 | W50: 16.7% | X50: 3.08 | Y50: 2.48 | Z50: -19.4% | AA50: Vtg | AD50: 7.5% | AE50: -1.7% | AG50: 16.9 | AJ50: 9.6 | AK50: 8.16 | AL50: 17.94%
A51: 2008-01-30 | B51: 21:54:00 | C51: 315 | D51: NW | E51: 53.1 | F51: 51.9 | G51: 47.3 | H51: 51.5 | I51: 52 | J51: 43.5 | K51: 37 | L51: 53.1 | M51: 51.5 | N51: =AVERAGE((E51:F51,H51:I51)) -> 52.1 | O51: 1.5% | P51: 43.5 | Q51: 11.7% | R51: 30.2 | S51: 33.8 | T51: 11.9% | U51: 24.54 | V51: 27.05 | W51: 10.2% | X51: 12.24 | Y51: 10.70 | Z51: -12.6% | AA51: Mon | AB51: 7.9 | AC51: 4.7 | AD51: -2.3% | AE51: 0.8% | AF51: =(F51-I51)/F51 -> -0.2% | AG51: 46.9 | AJ51: 25.2 | AK51: 24.54 | AL51: 2.62% | AM51: 2.62% | AN51: 10.23%
A52: 2008-01-31 | B52: 04:50:00 | C52: 291 | D52: NW | E52: 46.7 | F52: 46 | G52: 42.3 | H52: 43.5 | I52: 49.1 | J52: 41.8 | K52: 40.2 | L52: 49.1 | M52: 43.5 | N52: =AVERAGE((E52:F52,H52:I52)) -> 46.3 | O52: 6.0% | P52: 41.8 | Q52: 5.6% | R52: 25.2 | S52: 27.4 | T52: 8.7% | U52: 21.79 | V52: 23.3 | W52: 6.9% | X52: 9.57 | Y52: 9.57 | Z52: 0.0% | AA52: Mon | AD52: -1.5% | AE52: 5.4% | AF52: -6.7% | AG52: 39.8 | AJ52: 21.9 | AK52: 21.79 | AL52: 0.29% | AM52: 0.29% | AN52: 6.93%
A53: 2008-02-01 | B53: 11:40:00 | C53: 251 | D53: SW | E53: 29 | F53: 28.5 | G53: 26.7 | H53: 27.4 | I53: 29.8 | J53: 24.1 | K53: 22.5 | L53: =MAX(E53:F53,H53:I53) -> 29.8 | M53: =MIN(E53:F53,H53:I53) -> 27.4 | N53: =AVERAGE((E53:F53,H53:I53)) -> 28.7 | O53: =((L53-M53)/2)/N53 -> 4.2% | P53: =MAX(J53:K53) -> 24.1 | Q53: =ABS(((N53-J53))/2/K53) -> 10.2% | R53: 21.8 | S53: 24.1 | T53: 10.6% | U53: 17.77 | V53: 18.2 | W53: 2.4% | X53: 6.25 | Y53: 5.41 | Z53: -13.4% | AA53: Mon | AD53: -1.8% | AE53: 3.9% | AF53: -4.6% | AG53: 25.5 | AJ53: 17.3 | AK53: 17.77 | AL53: -2.49% | AM53: -2.49% | AN53: 2.42%
A54: 2008-02-02 | B54: 12:21:00 | C54: 285 | D54: W | E54: 37 | F54: 39.3 | G54: 36.2 | H54: 45.1 | I54: 43.3 | J54: 37 | K54: 32.2 | L54: 45.1 | M54: 37 | N54: =AVERAGE((E54:F54,H54:I54)) -> 41.2 | O54: 9.8% | P54: 37 | Q54: 6.5% | R54: 24.8 | S54: 27.4 | T54: 10.5% | U54: 19.22 | V54: 21.22 | W54: 10.4% | X54: 9.08 | Y54: 8.42 | Z54: -7.2% | AA54: Vtg | AD54: 5.9% | AE54: -14.8% | AF54: -10.2% | AG54: 41.2 | AJ54: 20.0 | AK54: 19.22 | AL54: 4.10% | AM54: 4.10% | AN54: 10.41%
A55: 2008-02-03 | B55: 09:24:00 | C55: 125 | D55: E | E55: 35.4 | F55: 30.9 | G55: 29.1 | H55: 32.2 | I55: 32.2 | J55: 29 | K55: 25.7 | L55: 35.4 | M55: 30.9 | N55: =AVERAGE((E55:F55,H55:I55)) -> 32.7 | O55: =((L55-M55)/2)/N55 -> 6.9% | P55: =MAX(J55:K55) -> 29 | Q55: =ABS(((N55-J55))/2/K55) -> 7.1% | R55: 19.1 | S55: 20.9 | T55: 9.4% | U55: 14.16 | V55: 15.62 | W55: 10.3% | X55: 5.87 | Y55: 5.52 | Z55: -5.9% | AA55: Mon | AD55: -14.6% | AE55: -4.2% | AF55: -4.2% | AG55: 29.8 | AJ55: 15.0 | AK55: 14.16 | AL55: 6.20% | AM55: 6.20% | AN55: 10.31%
A56: 2008-02-04 | B56: 17:08:00 | C56: 306 | D56: W | E56: 54.7 | F56: 61.2 | G56: 55.4 | H56: 59.5 | I56: 66 | J56: 49.9 | K56: 43.4 | L56: =MAX(E56:F56,H56:I56) -> 66 | M56: =MIN(E56:F56,H56:I56) -> 54.7 | N56: =AVERAGE((E56:F56,H56:I56)) -> 60.4 | O56: =((L56-M56)/2)/N56 -> 9.4% | P56: =MAX(J56:K56) -> 49.9 | Q56: =ABS(((N56-J56))/2/K56) -> 12.0% | R56: 38 | S56: 38.6 | T56: 1.6% | U56: 29.08 | V56: 31.55 | W56: 8.5% | X56: 13.66 | Y56: 14.09 | Z56: 3.2% | AA56: Vtg | AB56: 10.3 | AC56: 7.4 | AD56: 10.6% | AE56: 2.8% | AF56: -7.8% | AG56: 54.0 | AJ56: 29.2 | AK56: 29.08 | AL56: 0.33% | AM56: 0.33% | AN56: 8.49%
A57: 2008-02-05 | B57: 00:37:00 | C57: 298 | D57: W | E57: 51.5 | F57: 55.1 | G57: 47.4 | H57: 51.5 | I57: 57.5 | J57: 46.7 | K57: 45.1 | L57: =MAX(E57:F57,H57:I57) -> 57.5 | M57: =MIN(E57:F57,H57:I57) -> 51.5 | N57: =AVERAGE((E57:F57,H57:I57)) -> 53.9 | O57: =((L57-M57)/2)/N57 -> 5.6% | P57: =MAX(J57:K57) -> 46.7 | Q57: =ABS(((N57-J57))/2/K57) -> 8.0% | R57: 30.3 | S57: 35.4 | T57: 16.8% | U57: 26.5 | V57: 28.48 | W57: 7.5% | X57: 11.69 | Y57: 12.06 | Z57: 3.2% | AA57: Vtg | AD57: 6.5% | AE57: 6.5% | AF57: -4.4% | AG57: 46.9 | AJ57: 26.5 | AK57: 26.5 | AL57: -0.18% | AM57: -0.18% | AN57: 7.47%
A58: 2008-02-06 | B58: 11:34:00 | C58: 319 | D58: SW | E58: 56.3 | F58: 55.2 | G58: 51.7 | H58: 56.3 | I58: 57.5 | J58: 49.9 | K58: 46.7 | L58: 57.5 | M58: 55.2 | N58: =AVERAGE((E58:F58,H58:I58)) -> 56.3 | O58: 2.0% | P58: 49.9 | Q58: 6.9% | R58: 34.5 | S58: 38.6 | T58: 11.9% | U58: 26.42 | V58: 29.45 | W58: 11.5% | X58: 15.06 | Y58: 14.22 | Z58: -5.6% | AA58: vtg | AB58: 9.7 | AC58: 5.1 | AD58: -2.0% | AE58: -2.0% | AF58: -4.2% | AG58: 51.1 | AJ58: 27.3 | AK58: 26.42 | AL58: 3.38% | AM58: 3.38% | AN58: 11.47%
A59: 2008-02-07 | B59: 01:38:00 | C59: 298 | D59: N | E59: 45.1 | F59: 40.4 | G59: 38.9 | H59: 38.6 | I59: 46.5 | J59: 33.8 | K59: 30.6 | L59: =MAX(E59:F59,H59:I59) -> 46.5 | M59: =MIN(E59:F59,H59:I59) -> 38.6 | N59: =AVERAGE((E59:F59,H59:I59)) -> 42.7 | O59: =((L59-M59)/2)/N59 -> 9.3% | P59: =MAX(J59:K59) -> 33.8 | Q59: =ABS(((N59-J59))/2/K59) -> 14.5% | R59: 27.5 | S59: 29 | T59: 5.5% | U59: 22.27 | V59: 24.27 | W59: 9.0% | X59: 6.69 | Y59: 6.64 | Z59: -0.8% | AA59: Mon | AB59: 9.2 | AC59: 1.9 | AD59: -11.6% | AE59: 4.5% | AF59: -15.1% | AG59: 35.4 | AJ59: 22.7 | AK59: 22.27 | AL59: 2.00% | AM59: 2.00% | AN59: 8.98%
A60: 2008-02-08 | B60: 12:00:00 | C60: 30 | D60: NE | E60: 25.8 | F60: 24.2 | G60: 23 | H60: 24.1 | I60: 31 | J60: 22.5 | K60: 17.7 | L60: 31 | M60: 24.1 | N60: =AVERAGE((E60:F60,H60:I60)) -> 26.3 | O60: 13.1% | P60: 22.5 | Q60: 10.7% | R60: 17.7 | S60: 19.3 | T60: 9.0% | U60: 12.18 | V60: 14.18 | W60: 16.4% | X60: 4.43 | Y60: 3.45 | Z60: -22.1% | AA60: Mon | AD60: -6.6% | AE60: 0.4% | AF60: -28.1% | AG60: 22.6 | AJ60: 13.8 | AK60: 12.18 | AL60: 12.97% | AM60: 12.97% | AN60: 16.42%
A61: 2008-02-09 | B61: 15:57:00 | C61: 222 | D61: SW | E61: 27.4 | F61: 28.3 | G61: 26.1 | H61: 25.8 | I61: 28.2 | J61: 19.3 | K61: 22.5 | L61: 28.3 | M61: 25.8 | N61: =AVERAGE((E61:F61,H61:I61)) -> 27.4 | O61: 4.6% | P61: 22.5 | Q61: 18.1% | R61: 16.6 | S61: 19.3 | T61: 16.3% | U61: 13.78 | V61: 15.14 | W61: 9.9% | X61: 3.99 | Y61: 3.53 | Z61: -11.6% | AA61: Mon | AD61: 3.2% | AE61: 8.8% | AF61: 0.4% | AG61: 24.1 | AJ61: 14.6 | AK61: 13.78 | AL61: 6.04% | AM61: 6.04% | AN61: 9.87%
A62: 2008-02-10 | B62: 15:49:00 | C62: 213 | D62: SW | E62: 25.8 | F62: 22.7 | G62: 22 | H62: 25.8 | I62: 26 | J62: 19.3 | K62: 20.9 | L62: 26 | M62: 22.7 | N62: =AVERAGE((E62:F62,H62:I62)) -> 25.1 | O62: 6.6% | P62: 20.9 | Q62: 13.8% | R62: 15.6 | S62: 16.1 | T62: 3.2% | U62: 11.8 | V62: 12.41 | W62: 5.2% | X62: 4.15 | Y62: 3.15 | Z62: -24.0% | AA62: Mon | AD62: -13.7% | AE62: -13.7% | AF62: -14.5% | AG62: 24.1 | AJ62: 12.2 | AK62: 11.8 | AL62: 3.30% | AM62: 3.30% | AN62: 5.17%
A63: 2008-02-11 | B63: 11:03:00 | C63: 33 | D63: E | E63: 32.2 | F63: 29.9 | G63: 28.8 | H63: 27.4 | I63: 33.3 | J63: 22.5 | K63: 25.7 | L63: =MAX(E63:F63,H63:I63) -> 33.3 | M63: =MIN(E63:F63,H63:I63) -> 27.4 | N63: =AVERAGE((E63:F63,H63:I63)) -> 30.7 | O63: =((L63-M63)/2)/N63 -> 9.6% | P63: =MAX(J63:K63) -> 25.7 | Q63: =ABS(((N63-J63))/2/K63) -> 16.0% | R63: 19.8 | S63: 20.9 | T63: 5.6% | U63: 13.32 | V63: 15.14 | W63: 13.7% | X63: 4.44 | Y63: 3.98 | Z63: -10.4% | AA63: Mon | AD63: -7.7% | AE63: 8.4% | AF63: -11.4% | AG63: 25.5 | AJ63: 14.6 | AK63: 13.32 | AL63: 9.70% | AM63: 9.70% | AN63: 13.66%
A64: 2008-02-12 | B64: 14:14:00 | C64: 84 | D64: E | E64: 22.5 | F64: 19.2 | G64: 18.5 | H64: 19.3 | J64: 17.7 | K64: 17.7 | L64: 22.5 | M64: 19.2 | N64: =AVERAGE((E64:F64,H64:I64)) -> 20.3 | O64: 8.1% | P64: 17.7 | Q64: 7.4% | R64: 13.1 | S64: 16.1 | T64: 22.9% | U64: 9.05 | V64: 10.97 | W64: 21.2% | X64: 3.79 | Y64: 2.73 | Z64: -28.1% | AA64: Mon | AD64: -17.2% | AE64: -0.5% | AG64: 18.3 | AJ64: 10.9 | AK64: 9.05 | AL64: 20.56%
A65: 2008-02-13 | B65: 11:43:00 | C65: 122 | D65: E | E65: 24.1 | F65: 21.5 | H65: 20.9 | I65: 25.5 | J65: 19.3 | K65: 16.1 | L65: 25.5 | M65: 20.9 | N65: =AVERAGE((E65:F65,H65:I65)) -> 23.0 | O65: 10.0% | P65: 19.3 | Q65: 11.5% | AA65: Mon | AD65: -12.1% | AE65: 2.8% | AF65: =(F65-I65)/F65 -> -18.6% | AG65: 19.7
A66: 2008-02-14 | B66: 15:45:00 | C66: 205 | D66: SW | E66: 17.7 | F66: 17.8 | H66: 17.7 | J66: 16.1 | K66: 17.7 | L66: =MAX(E66:F66,H66:I66) -> 17.8 | M66: =MIN(E66:F66,H66:I66) -> 17.7 | N66: =AVERAGE((E66:F66,H66:I66)) -> 17.7 | O66: =((L66-M66)/2)/N66 -> 0.3% | P66: =MAX(J66:K66) -> 17.7 | Q66: =ABS(((N66-J66))/2/K66) -> 4.6% | AA66: Mon | AD66: 0.6% | AE66: 0.6% | AG66: 16.9
A67: 2008-02-15 | B67: 14:57:00 | C67: 232 | D67: SW | E67: 24.1 | F67: 21.5 | G67: 20.7 | H67: 22.5 | J67: 19.3 | K67: 17.7 | L67: 24.1 | M67: 21.5 | N67: =AVERAGE((E67:F67,H67:I67)) -> 22.7 | O67: 5.7% | P67: 19.3 | Q67: 9.6% | R67: 15.9 | S67: 16.1 | T67: =(S67-R67)/R67 -> 1.3% | U67: 11.52 | V67: 12.89 | W67: 11.9% | X67: 3.08 | Y67: 2.17 | Z67: -29.7% | AA67: Mon | AD67: -12.1% | AE67: -4.7% | AG67: 21.1 | AJ67: =((0.3264+(V67/3.6)*0.8875))*3.6 -> 12.6 | AK67: 11.52 | AL67: 9.50% | AM67: 9.50% | AN67: 11.89%
A68: 2008-02-16 | B68: 13:59:00 | C68: 201 | D68: S | E68: 22.5 | F68: 18.4 | G68: 17.9 | H68: 20.9 | I68: 25 | J68: 19.3 | K68: 17.7 | L68: 25 | M68: 18.4 | N68: =AVERAGE((E68:F68,H68:I68)) -> 21.7 | O68: 15.2% | P68: 19.3 | Q68: 6.8% | R68: 13.5 | S68: 14.5 | T68: 7.4% | U68: 10.92 | V68: 12.42 | W68: 13.7% | X68: 3.35 | Y68: 2.49 | Z68: -25.7% | AA68: Mon | AD68: -22.3% | AE68: -13.6% | AF68: =(F68-I68)/F68 -> -35.9% | AG68: 19.7 | AJ68: 12.2 | AK68: 10.92 | AL68: 11.70%
A69: 2008-02-17 | B69: 10:21:00 | C69: 50 | D69: E | E69: 40.2 | F69: 36.4 | G69: 34.5 | H69: 32.2 | I69: 44.2 | J69: 29 | K69: 24.1 | L69: 44.2 | M69: 32.2 | N69: =AVERAGE((E69:F69,H69:I69)) -> 38.3 | O69: 15.7% | P69: 29 | Q69: 19.2% | R69: 21.2 | S69: 27.4 | T69: 29.2% | U69: 17.43 | V69: 19.79 | W69: 13.5% | X69: 6.82 | Y69: 6.31 | Z69: -7.5% | AA69: Mon | AB69: 4.7 | AC69: 2.4 | AD69: -10.4% | AE69: 11.5% | AF69: =(F69-I69)/F69 -> -21.4% | AG69: =((0.3264+(H69/3.6)*0.8875))*3.6 -> 29.8 | AJ69: 18.7 | AK69: 17.43 | AL69: 7.51% | AM69: 7.51% | AN69: 13.54%
A70: 2008-02-18 | B70: 15:01:00 | C70: 220 | D70: SW | E70: 29 | F70: 29 | G70: 26.8 | H70: 29 | I70: 29.5 | J70: 29 | K70: 25.8 | L70: 29.5 | M70: 29 | N70: =AVERAGE((E70:F70,H70:I70)) -> 29.1 | O70: 0.9% | P70: 29 | Q70: 0.2% | R70: 19.5 | S70: 20.9 | T70: 7.2% | U70: 15.03 | V70: 16.58 | W70: 10.3% | X70: 5.61 | Y70: 4.35 | Z70: -22.4% | AA70: Mon | AD70: =(F70-E70)/F70 -> 0.0% | AE70: =(F70-H70)/F70 -> 0.0% | AF70: =(F70-I70)/F70 -> -1.7% | AG70: 26.9 | AJ70: 15.9 | AK70: 15.03 | AL70: 5.72% | AM70: 5.72% | AN70: 10.31%
A71: 2008-02-19 | B71: 11:49:00 | C71: 82 | D71: E | E71: 20.9 | F71: 16.8 | G71: 16.4 | H71: 16.1 | J71: 16.1 | K71: 16.1 | L71: 20.9 | M71: 16.1 | N71: =AVERAGE((E71:F71,H71:I71)) -> 17.9 | O71: 13.4% | P71: 16.1 | Q71: 5.7% | R71: 14 | S71: 14.5 | T71: 3.6% | U71: 9.96 | V71: 11.6 | W71: 16.5% | X71: 3.09 | Y71: 2.92 | Z71: -5.4% | AA71: Mon | AD71: -24.4% | AE71: 4.2% | AG71: 15.5 | AJ71: 11.5 | AK71: 9.96 | AL71: 15.16%
A72: 2008-02-20 | B72: 12:29:00 | C72: 126 | D72: E | E72: 33.8 | F72: 30.9 | G72: 27 | H72: 27.4 | I72: 36 | J72: 25.8 | K72: 24.1 | L72: =MAX(E72:F72,H72:I72) -> 36 | M72: =MIN(E72:F72,H72:I72) -> 27.4 | N72: =AVERAGE((E72:F72,H72:I72)) -> 32.0 | O72: =((L72-M72)/2)/N72 -> 13.4% | P72: =MAX(J72:K72) -> 25.8 | Q72: =ABS(((N72-J72))/2/K72) -> 12.9% | R72: 21 | S72: 22.5 | T72: 7.1% | U72: 15.45 | V72: 17.54 | W72: 13.5% | X72: 5.8 | Y72: 5.06 | Z72: -12.7% | AA72: Mon | AD72: -9.4% | AE72: 11.3% | AF72: =(F72-I72)/F72 -> -16.5% | AG72: 25.5 | AJ72: 16.7 | AK72: 15.45 | AL72: =(AJ72-AK72)/AK72 -> 8.36% | AM72: 8.36% | AN72: 13.53%
A73: 2008-02-21 | B73: 15:52:00 | C73: 225 | D73: SW | E73: 25.8 | F73: 24.4 | H73: 24.1 | I73: 27 | J73: 20.9 | K73: 22.5 | L73: 27 | M73: 24.1 | N73: =AVERAGE((E73:F73,H73:I73)) -> 25.3 | O73: 5.7% | P73: 22.5 | Q73: 9.8% | AA73: Mon | AD73: -5.7% | AE73: 1.2% | AF73: =(F73-I73)/F73 -> -10.7% | AG73: 22.6 | AM73: =IF(AK73>11,AL73,"") -> 
A74: 2008-02-22 | B74: 15:04:00 | C74: 234 | D74: SW | E74: 19.3 | F74: 18.3 | G74: 18.13 | H74: 17.7 | J74: 17.7 | K74: 17.7 | L74: =MAX(E74:F74,H74:I74) -> 19.3 | M74: =MIN(E74:F74,H74:I74) -> 17.7 | N74: =AVERAGE((E74:F74,H74:I74)) -> 18.4 | O74: =((L74-M74)/2)/N74 -> 4.3% | P74: =MAX(J74:K74) -> 17.7 | Q74: =ABS(((N74-J74))/2/K74) -> 2.1% | R74: 13.8 | S74: 12.9 | T74: -6.5% | U74: 10.85 | V74: 10.97 | W74: 1.1% | X74: 3.57 | Y74: 2.98 | Z74: =(Y74-X74)/X74 -> -16.5% | AA74: Mon | AD74: -5.5% | AE74: 3.3% | AG74: 16.9 | AJ74: =((0.3264+(V74/3.6)*0.8875))*3.6 -> 10.9 | AK74: =U74 -> 10.85 | AL74: 0.56% | AN74: =IF(AK74>11,W74,"") -> 
A75: 2008-02-23 | B75: 14:59:00 | C75: 248 | D75: SW | E75: 24.1 | F75: 23.4 | G75: 22.6 | H75: 24.1 | I75: 25 | J75: 22.5 | K75: 20.9 | L75: =MAX(E75:F75,H75:I75) -> 25 | M75: =MIN(E75:F75,H75:I75) -> 23.4 | N75: =AVERAGE((E75:F75,H75:I75)) -> 24.2 | O75: =((L75-M75)/2)/N75 -> 3.3% | P75: =MAX(J75:K75) -> 22.5 | Q75: =ABS(((N75-J75))/2/K75) -> 3.9% | R75: 14.9 | S75: 17.7 | T75: 18.8% | U75: 12.11 | V75: 13.22 | W75: 9.2% | X75: 4.12 | Y75: 3.14 | Z75: -23.7% | AA75: Mon | AD75: -3.0% | AE75: -3.0% | AF75: =(F75-I75)/F75 -> -6.8% | AG75: 22.6 | AJ75: 12.9 | AK75: 12.11 | AL75: 6.59% | AM75: 6.59% | AN75: 9.17%
A76: 2008-02-24 | B76: 11:37:00 | C76: 57 | D76: NE | E76: 22.5 | F76: 18.5 | G76: 17.83 | H76: 17.7 | I76: 26 | J76: 20.9 | K76: 16.1 | L76: 26 | M76: 17.7 | N76: =AVERAGE((E76:F76,H76:I76)) -> 21.2 | O76: 19.6% | P76: 20.9 | Q76: 0.9% | R76: 14.7 | S76: 14.5 | T76: -1.4% | U76: 10.95 | V76: 12.74 | W76: 16.3% | X76: 3.73 | Y76: 3.77 | Z76: 1.2% | AA76: Mon | AD76: -21.6% | AE76: 4.3% | AF76: =(F76-I76)/F76 -> -40.5% | AG76: 16.9 | AJ76: 12.5 | AK76: 10.95 | AL76: 13.99%
A77: 2008-02-25 | B77: 16:42:00 | C77: 227 | D77: SW | E77: 17.7 | F77: 15.5 | G77: 15 | H77: 16.1 | J77: 16.1 | K77: 14.5 | L77: 17.7 | M77: 15.5 | N77: =AVERAGE((E77:F77,H77:I77)) -> 16.4 | O77: 6.7% | P77: 16.1 | Q77: 1.1% | R77: 12.3 | S77: 12.9 | T77: 4.9% | U77: 9.83 | V77: 11.61 | W77: 18.1% | X77: 3.41 | Y77: 2.57 | Z77: -24.8% | AA77: Mon | AD77: -14.2% | AE77: -3.9% | AG77: 15.5 | AJ77: 11.5 | AK77: 9.83 | AL77: 16.77%
A78: 2008-02-26 | B78: 17:27:00 | C78: 191 | D78: SW | E78: 29 | F78: 26.5 | G78: 24.3 | H78: 29 | I78: 27.5 | J78: 20.9 | K78: 19.3 | L78: =MAX(E78:F78,H78:I78) -> 29 | M78: =MIN(E78:F78,H78:I78) -> 26.5 | N78: =AVERAGE((E78:F78,H78:I78)) -> 28.0 | O78: =((L78-M78)/2)/N78 -> 4.5% | P78: =MAX(J78:K78) -> 20.9 | Q78: =ABS(((N78-J78))/2/K78) -> 18.4% | R78: 15.7 | S78: 16.1 | T78: 2.5% | U78: 12.15 | V78: 13.7 | W78: 12.8% | X78: 6 | Y78: 5.08 | Z78: -15.3% | AA78: Mon | AD78: -9.4% | AE78: -9.4% | AF78: =(F78-I78)/F78 -> -3.8% | AG78: 26.9 | AJ78: 13.3 | AK78: 12.15 | AL78: 9.74% | AM78: 9.74% | AN78: 12.76%
A79: 2008-02-27 | B79: 09:49:00 | C79: 322 | D79: W | E79: 40.2 | F79: 40.7 | G79: 37.2 | H79: 38.6 | I79: 44 | J79: 37 | K79: 35.4 | L79: =MAX(E79:F79,H79:I79) -> 44 | M79: =MIN(E79:F79,H79:I79) -> 38.6 | N79: =AVERAGE((E79:F79,H79:I79)) -> 40.9 | O79: =((L79-M79)/2)/N79 -> 6.6% | P79: =MAX(J79:K79) -> 37 | Q79: =ABS(((N79-J79))/2/K79) -> 5.5% | R79: 27.2 | S79: 29 | T79: 6.6% | U79: 18.81 | V79: 20.26 | W79: 7.7% | X79: 10.48 | Y79: 11.15 | Z79: 6.4% | AA79: Mon | AB79: 4.9 | AC79: 1.5 | AD79: 1.2% | AE79: 5.2% | AF79: -8.1% | AG79: 35.4 | AJ79: 19.2 | AK79: 18.81 | AL79: 1.84% | AM79: 1.84% | AN79: 7.71%
A80: 2008-02-28 | B80: 13:25:00 | C80: 66 | E80: 27.4 | F80: 22.9 | G80: 22.3 | H80: 20.9 | I80: 27 | J80: 17.7 | K80: 17.7 | L80: 27.4 | M80: 20.9 | N80: =AVERAGE((E80:F80,H80:I80)) -> 24.6 | O80: 13.2% | P80: 17.7 | Q80: 19.4% | R80: 14.6 | S80: 17.7 | T80: 21.2% | U80: 11.82 | V80: 13.21 | W80: 11.8% | X80: 3.52 | Y80: 3.43 | Z80: -2.7% | AA80: Mon | AD80: -19.7% | AE80: 8.7% | AF80: -17.9% | AG80: 19.7 | AJ80: 12.9 | AK80: 11.82 | AL80: 9.13% | AM80: 9.13% | AN80: 11.76%
A81: 2008-02-29 | B81: 18:00:00 | C81: 274 | D81: NW | E81: 41.8 | F81: 44.7 | G81: 40.1 | H81: 41.8 | I81: 44.5 | J81: 41.8 | K81: 33.8 | L81: 44.7 | M81: 41.8 | N81: =AVERAGE((E81:F81,H81:I81)) -> 43.2 | O81: 3.4% | P81: 41.8 | Q81: 2.1% | R81: 27.1 | S81: 29 | T81: 7.0% | U81: 21.74 | V81: 23.64 | W81: 8.7% | X81: 11.05 | Y81: 11.88 | Z81: 7.5% | AA81: Mon | AB81: 6.7 | AC81: 4.1 | AD81: 6.5% | AE81: 6.5% | AF81: 0.4% | AG81: 38.3 | AJ81: 22.2 | AK81: 21.74 | AL81: 1.91% | AM81: 1.91% | AN81: 8.74%
A82: 2008-03-01 | B82: 11:24:00 | C82: 262 | D82: W | E82: 66 | F82: 70.7 | G82: 63.1 | H82: 69.2 | I82: 74 | J82: 69.2 | K82: 54.7 | L82: 74 | M82: 66 | N82: =AVERAGE((E82:F82,H82:I82)) -> 70.0 | O82: 5.7% | P82: 69.2 | Q82: 0.7% | R82: 44.8 | S82: 49.9 | T82: 11.4% | U82: 34.51 | V82: 38.29 | W82: 11.0% | X82: 22.96 | Y82: 25.09 | Z82: 9.3% | AA82: vtg | AB82: 17.9 | AC82: 8.2 | AD82: 6.6% | AE82: 2.1% | AF82: -4.7% | AG82: 62.6 | AJ82: 35.2 | AK82: 34.51 | AL82: 1.88% | AM82: 1.88% | AN82: 10.95% | AQ82: 69.2 | AR82: 62.6
A83: 2008-03-02 | B83: 05:41:00 | C83: 322 | D83: NW | E83: 78.8 | F83: 81.3 | G83: 76 | H83: 82.1 | I83: 84.5 | J83: 61.1 | K83: 53.1 | L83: 84.5 | M83: 78.8 | N83: =AVERAGE((E83:F83,H83:I83)) -> 81.7 | O83: 3.5% | P83: 61.1 | Q83: 19.4% | R83: 43.3 | S83: 46.7 | T83: 7.9% | U83: 37.59 | V83: 41.19 | W83: 9.6% | X83: 20.69 | Y83: 22.61 | Z83: 9.3% | AA83: vtg | AB83: 19.9 | AC83: 12.8 | AD83: 3.1% | AE83: -1.0% | AF83: -3.9% | AG83: 74.0 | AJ83: 37.7 | AK83: 37.59 | AL83: 0.38% | AM83: 0.38% | AN83: 9.58% | AQ83: 82.1 | AR83: 74.0
A84: 2008-03-03 | B84: 22:32:00 | C84: 289 | D84: NW | E84: 61.1 | F84: 65.9 | G84: 59.7 | H84: 67.6 | I84: 74 | J84: 62.8 | K84: 57.9 | L84: 74 | M84: 61.1 | N84: =AVERAGE((E84:F84,H84:I84)) -> 67.2 | O84: 9.6% | P84: 62.8 | Q84: 3.8% | R84: 42.8 | S84: 48.3 | T84: 12.9% | U84: 34.89 | V84: 37.33 | W84: 7.0% | X84: 18.01 | Y84: 19.31 | Z84: 7.2% | AA84: vtg | AB84: 14.7 | AC84: 8.8 | AD84: 7.3% | AE84: -2.6% | AF84: -12.3% | AG84: 61.2 | AJ84: 34.3 | AK84: 34.89 | AL84: -1.68% | AM84: -1.68% | AN84: 6.99% | AQ84: 67.6 | AR84: 61.2
A85: 2008-03-04 | B85: 02:46:00 | C85: 315 | D85: NW | E85: 74 | F85: 75.8 | G85: 68.9 | H85: 78.8 | I85: 83.7 | J85: 66 | K85: 57.9 | L85: 83.7 | M85: 74 | N85: =AVERAGE((E85:F85,H85:I85)) -> 78.1 | O85: 6.2% | P85: 66 | Q85: 10.4% | R85: 49.8 | S85: 53.1 | T85: 6.6% | U85: 41.83 | V85: 45.87 | W85: =(V85-U85)/U85 -> 9.7% | X85: 25.05 | Y85: 27.03 | Z85: 7.9% | AA85: vtg | AB85: 22.8 | AC85: 11.7 | AD85: 2.4% | AE85: -4.0% | AF85: -10.4% | AG85: 71.1 | AJ85: 41.9 | AK85: 41.83 | AL85: =(AJ85-AK85)/AK85 -> 0.13% | AM85: 0.13% | AN85: 9.66% | AQ85: 78.8 | AR85: 71.1
A86: 2008-03-05 | B86: 01:35:00 | C86: 23 | D86: NE | E86: 53.1 | F86: 47.1 | G86: 44.8 | H86: 51.5 | I86: 55 | J86: 29 | K86: 29 | L86: =MAX(E86:F86,H86:I86) -> 55 | M86: =MIN(E86:F86,H86:I86) -> 47.1 | N86: =AVERAGE((E86:F86,H86:I86)) -> 51.7 | O86: =((L86-M86)/2)/N86 -> 7.6% | P86: =MAX(J86:K86) -> 29 | Q86: =ABS(((N86-J86))/2/K86) -> 39.1% | R86: 26.2 | S86: 29 | U86: 19.06 | V86: 20.75 | X86: 8.12 | Y86: 7.68 | AA86: Mon | AB86: 5.7 | AC86: 3.7 | AD86: =(F86-E86)/F86 -> -12.7% | AE86: =(F86-H86)/F86 -> -9.3% | AF86: =(F86-I86)/F86 -> -16.8% | AG86: 46.9 | AK86: =U86 -> 19.06 | AQ86: 51.5 | AR86: 46.9
A87: 2008-03-06 | B87: 06:28:00 | C87: 291 | D87: NW | E87: 33.8 | F87: 34.6 | G87: 31.7 | H87: 32.2 | I87: 38.5 | J87: 29 | K87: 25.7 | L87: =MAX(E87:F87,H87:I87) -> 38.5 | M87: =MIN(E87:F87,H87:I87) -> 32.2 | N87: =AVERAGE((E87:F87,H87:I87)) -> 34.8 | O87: =((L87-M87)/2)/N87 -> 9.1% | P87: =MAX(J87:K87) -> 29 | Q87: =ABS(((N87-J87))/2/K87) -> 11.2% | R87: 23.2 | S87: 22.5 | U87: 19.34 | V87: 19.46 | X87: 7.84 | Y87: 6.93 | AA87: Mon | AD87: 2.3% | AE87: 6.9% | AF87: -11.3% | AG87: 29.8 | AK87: 19.34 | AQ87: 32.2 | AR87: 29.8
A88: 2008-03-07 | B88: 12:21:00 | C88: 277 | D88: W | E88: 25.8 | F88: 24.5 | G88: 22.8 | H88: 22.5 | I88: 29.5 | J88: 22.5 | K88: 17.7 | L88: 29.5 | M88: 22.5 | N88: =AVERAGE((E88:F88,H88:I88)) -> 25.6 | O88: 13.7% | P88: 22.5 | Q88: 8.7% | R88: 18.4 | S88: 19.3 | U88: 13.62 | V88: 13.53 | X88: 5.81 | Y88: 4.38 | AA88: Mon | AD88: -5.3% | AE88: 8.2% | AF88: -20.4% | AG88: 21.1 | AK88: 13.62 | AQ88: 22.5 | AR88: 21.1
A89: 2008-03-08 | B89: 00:27:00 | C89: 284 | D89: W | E89: 24.1 | F89: 23 | G89: 22 | H89: 20.9 | I89: 26.5 | J89: 25.8 | K89: 17.7 | L89: 26.5 | M89: 20.9 | N89: =AVERAGE((E89:F89,H89:I89)) -> 23.6 | O89: 11.9% | P89: 25.8 | Q89: 6.1% | R89: 16.3 | S89: 16.1 | U89: 12.5 | V89: 12.09 | X89: 4.78 | Y89: 3.77 | AA89: Mon | AD89: -4.8% | AE89: 9.1% | AF89: -15.2% | AG89: 19.7 | AK89: 12.5 | AQ89: 20.9 | AR89: 19.7
A90: 2008-03-09 | B90: 11:48:00 | C90: 246 | D90: SW | E90: 29 | F90: 28.2 | G90: 27.4 | H90: 27.4 | I90: 29 | J90: 22.5 | K90: 20.9 | L90: 29 | M90: 27.4 | N90: =AVERAGE((E90:F90,H90:I90)) -> 28.4 | O90: 2.8% | P90: 22.5 | Q90: 14.1% | R90: 21.4 | S90: 22.5 | U90: 15.86 | V90: 17.38 | X90: 4.73 | Y90: 3.28 | AA90: Mon | AD90: -2.8% | AE90: 2.8% | AF90: -2.8% | AG90: 25.5 | AK90: 15.86 | AQ90: 27.4 | AR90: 25.5
A91: 2008-03-10 | B91: 12:43:00 | C91: 227 | D91: SW | E91: 33.8 | F91: 31.9 | G91: 30.1 | H91: 35.4 | I91: 37 | J91: 30.6 | K91: 24.1 | L91: =MAX(E91:F91,H91:I91) -> 37 | M91: =MIN(E91:F91,H91:I91) -> 31.9 | N91: =AVERAGE((E91:F91,H91:I91)) -> 34.5 | O91: =((L91-M91)/2)/N91 -> 7.4% | P91: =MAX(J91:K91) -> 30.6 | Q91: =ABS(((N91-J91))/2/K91) -> 8.1% | R91: 22.5 | S91: 24.1 | U91: 17.52 | V91: 17.54 | X91: 5.48 | Y91: 5.63 | AA91: vtg | AD91: -6.0% | AE91: -11.0% | AF91: -16.0% | AG91: 32.6 | AK91: 17.52 | AQ91: 35.4 | AR91: 32.6
A92: 2008-03-11 | B92: 11:56:00 | C92: 327 | D92: NW | E92: 72.4 | F92: 76.8 | G92: 66.2 | H92: 77.2 | I92: 81.2 | J92: 66 | K92: 59.5 | L92: 81.2 | M92: 72.4 | N92: =AVERAGE((E92:F92,H92:I92)) -> 76.9 | O92: 5.7% | P92: 66 | Q92: 9.2% | R92: 46.8 | S92: 53.1 | U92: 39.38 | V92: 43.29 | X92: 26.34 | Y92: 28.33 | AA92: vtg | AB92: 19.5 | AC92: 10.6 | AD92: 5.7% | AE92: -0.5% | AF92: -5.7% | AG92: 69.7 | AK92: 39.38 | AQ92: 77.2 | AR92: 69.7
A93: 2008-03-12 | B93: 319 | C93: 319 | D93: NW | E93: 75.6 | F93: 77.1 | G93: 69.3 | H93: 74 | I93: 80.5 | J93: 70.8 | K93: 61.1 | L93: 80.5 | M93: 74 | N93: =AVERAGE((E93:F93,H93:I93)) -> 76.8 | O93: 4.2% | P93: 70.8 | Q93: 4.9% | R93: 48 | S93: 53.1 | U93: 39.68 | V93: 43.46 | X93: 26.75 | Y93: 29.14 | AA93: vtg | AB93: 19.1 | AC93: 14.7 | AD93: 1.9% | AE93: 4.0% | AF93: -4.4% | AG93: 66.9 | AK93: 39.68 | AQ93: 74 | AR93: 66.9
A94: 2008-03-13 | B94: 01:06:00 | C94: 333 | D94: NW | E94: 67.6 | F94: 70 | G94: 63.7 | H94: 69.2 | I94: 69 | J94: 57.9 | K94: 48.3 | L94: 70 | M94: 67.6 | N94: =AVERAGE((E94:F94,H94:I94)) -> 69.0 | O94: 1.7% | P94: 57.9 | Q94: 11.4% | R94: 41.5 | S94: 45.1 | U94: 32.37 | V94: 35.24 | X94: 23.08 | Y94: 24.94 | AA94: vtg | AB94: 17.8 | AC94: 8 | AD94: 3.4% | AE94: 1.1% | AF94: 1.4% | AG94: 62.6 | AK94: 32.37 | AQ94: 69.2 | AR94: 62.6
A95: 2008-03-14 | B95: 315 | C95: 315 | D95: W | E95: 41.8 | F95: 45.5 | G95: 40.1 | H95: 41.8 | I95: 49.5 | J95: 33.8 | K95: 30.6 | L95: 49.5 | M95: 41.8 | N95: =AVERAGE((E95:F95,H95:I95)) -> 44.7 | O95: 8.6% | P95: 33.8 | Q95: 17.7% | R95: 23 | S95: 24.1 | U95: 18.83 | V95: 19.94 | X95: 7.87 | Y95: 5.99 | AA95: vtg | AB95: 6.8 | AC95: 3 | AD95: 8.1% | AE95: 8.1% | AF95: -8.8% | AG95: 38.3 | AK95: 18.83 | AQ95: 41.8 | AR95: 38.3
A96: 2008-03-15 | B96: 13:14:00 | C96: 202 | D96: E | E96: 22.5 | F96: 19 | G96: 18.6 | H96: 20.9 | I96: 25 | J96: 17.7 | K96: 17.7 | L96: 25 | M96: 19 | N96: =AVERAGE((E96:F96,H96:I96)) -> 21.9 | O96: 13.7% | P96: 17.7 | Q96: 11.7% | R96: 14.4 | S96: 16.1 | U96: 11.91 | V96: 13.38 | X96: 4.38 | Y96: 3.73 | AA96: Mon | AD96: -18.4% | AE96: -10.0% | AF96: -31.6% | AG96: 19.7 | AK96: 11.91 | AQ96: 20.9 | AR96: 19.7
A97: 2008-03-16 | B97: 09:31:00 | C97: 303 | D97: NW | E97: 59.5 | F97: 60.5 | G97: 56.1 | H97: 61.1 | I97: 63.5 | J97: 48.3 | K97: 41.8 | L97: 63.5 | M97: 59.5 | N97: =AVERAGE((E97:F97,H97:I97)) -> 61.2 | O97: 3.3% | P97: 48.3 | Q97: 15.4% | R97: 34.8 | S97: 45.1 | U97: 29.86 | V97: 32.03 | X97: 16.84 | Y97: 16.26 | AA97: vtg | AB97: 11.5 | AC97: 6.4 | AD97: 1.7% | AE97: -1.0% | AF97: -5.0% | AG97: 55.4 | AK97: 29.86 | AQ97: 61.1 | AR97: 55.4
A98: 2008-03-17 | B98: 12:10:00 | C98: 302 | D98: W | E98: 54.7 | F98: 62.6 | G98: 53.1 | H98: 59.5 | I98: 60.5 | J98: 54.7 | K98: 45.1 | L98: 62.6 | M98: 54.7 | N98: =AVERAGE((E98:F98,H98:I98)) -> 59.3 | O98: 6.7% | P98: 54.7 | Q98: 5.1% | R98: 35.2 | S98: 40.2 | U98: 28.44 | V98: 31.06 | X98: 17.85 | Y98: 18.55 | AA98: vtg | AB98: 11.9 | AC98: 7.4 | AD98: 12.6% | AE98: 5.0% | AF98: 3.4% | AG98: 54.0 | AK98: 28.44 | AQ98: 59.5 | AR98: 54.0
A99: 2008-03-18 | B99: 11:47:00 | C99: 274 | D99: W | E99: 27.4 | F99: 28.9 | H99: 29 | I99: 30 | J99: 24.1 | K99: 20.9 | L99: =MAX(E99:F99,H99:I99) -> 30 | M99: =MIN(E99:F99,H99:I99) -> 27.4 | N99: =AVERAGE((E99:F99,H99:I99)) -> 28.8 | O99: =((L99-M99)/2)/N99 -> 4.5% | P99: 24.1 | Q99: 11.3% | AD99: 5.2% | AE99: -0.3% | AF99: -3.8% | AG99: 26.9 | AQ99: 29 | AR99: 26.9
A100: 2008-03-19 | B100: 23:16:00 | C100: 316 | D100: SW | E100: 24.1 | F100: 25.5 | H100: 25.7 | I100: 29.5 | J100: 20.9 | K100: 17.7 | L100: 29.5 | M100: 24.1 | N100: =AVERAGE((E100:F100,H100:I100)) -> 26.2 | O100: 10.3% | P100: 20.9 | Q100: 15.0% | AD100: =(F100-E100)/F100 -> 5.5% | AE100: =(F100-H100)/F100 -> -0.8% | AF100: =(F100-I100)/F100 -> -15.7% | AG100: 24.0 | AQ100: 25.7 | AR100: 24.0
A101: 2008-03-20 | B101: 22:47:00 | C101: 329 | D101: NW | E101: 47 | F101: 44.5 | G101: 42.2 | H101: 48.3 | I101: 52 | J101: 45.1 | K101: 37 | L101: 52 | M101: 44.5 | N101: =AVERAGE((E101:F101,H101:I101)) -> 48.0 | O101: 7.8% | P101: 45.1 | Q101: 3.9% | R101: 26.7 | S101: 30.6 | U101: 22.01 | V101: 22.84 | X101: 11.4 | Y101: 10.81 | AA101: vtg | AB101: 10.3 | AC101: 4.1 | AD101: -5.6% | AE101: -8.5% | AF101: -16.9% | AG101: =((0.3264+(H101/3.6)*0.8875))*3.6 -> 44.0 | AQ101: 48.3 | AR101: 44.0
A102: 2008-03-21 | B102: 05:30:00 | C102: 319 | D102: NW | E102: 95 | F102: 104.9 | G102: 88.6 | H102: 91.7 | I102: 104 | J102: 77.3 | K102: 67.6 | L102: 104.9 | M102: 91.7 | N102: =AVERAGE((E102:F102,H102:I102)) -> 98.9 | O102: 6.7% | P102: 77.3 | Q102: 16.0% | R102: 56.3 | S102: 61.2 | U102: 49.51 | V102: 53.6 | X102: 25.2 | Y102: 26.70 | AA102: vtg | AB102: 29.1 | AC102: 18.3 | AD102: 9.4% | AE102: 12.6% | AF102: 0.9% | AG102: 82.6 | AQ102: 91.7 | AR102: 82.6
A103: 2008-03-22 | B103: 14:04:00 | C103: 300 | D103: NW | E103: 56.3 | F103: 57.8 | H103: 59.5 | I103: 60.5 | J103: 48.3 | K103: 49.9 | L103: 60.5 | M103: 56.3 | N103: =AVERAGE((E103:F103,H103:I103)) -> 58.5 | O103: 3.6% | P103: 49.9 | Q103: 10.2% | R103: 35.4 | S103: 38.6 | U103: 26.93 | V103: 28.99 | X103: 16.83 | Y103: 17.10 | AA103: vtg | AB103: 9.9 | AC103: 7.2 | AD103: 2.6% | AE103: -2.9% | AF103: -4.7% | AG103: 54.0 | AQ103: 59.5 | AR103: 54.0
A104: 2008-03-23 | B104: 21:20:00 | C104: 324 | D104: W | E104: 67.6 | F104: 67.1 | H104: 66 | I104: 76.5 | J104: 57.9 | K104: 51.5 | L104: 76.5 | M104: 66 | N104: =AVERAGE((E104:F104,H104:I104)) -> 69.3 | O104: 7.6% | P104: 57.9 | Q104: 11.1% | S104: 46.7 | V104: 37.66 | Y104: 24.12 | AA104: vtg | AD104: -0.7% | AE104: 1.6% | AF104: -14.0% | AG104: 59.8 | AQ104: 66 | AR104: 59.8
A105: 2008-03-24 | B105: 14:15:00 | C105: 310 | D105: NW | E105: 95 | F105: 97.7 | H105: 90.1 | I105: 99 | J105: 78.8 | K105: 77.2 | L105: 99 | M105: 90.1 | N105: =AVERAGE((E105:F105,H105:I105)) -> 95.5 | O105: 4.7% | P105: 78.8 | Q105: 10.8% | S105: 59.5 | V105: 50.7 | Y105: 25.35 | AA105: vtg | AD105: 2.8% | AE105: 7.8% | AF105: -1.3% | AG105: 81.1 | AQ105: 90.1 | AR105: 81.1
A106: 2008-03-25 | B106: 09:56:00 | C106: 326 | D106: W | E106: 93.3 | F106: 98.1 | H106: 96.6 | I106: 104 | J106: 85.3 | K106: 64.4 | L106: =MAX(E106:F106,H106:I106) -> 104 | M106: =MIN(E106:F106,H106:I106) -> 93.3 | N106: =AVERAGE((E106:F106,H106:I106)) -> 98.0 | O106: =((L106-M106)/2)/N106 -> 5.5% | P106: 85.3 | Q106: 9.9% | S106: 62.8 | V106: 49.1 | Y106: 28.42 | AA106: vtg | AD106: 4.9% | AE106: 1.5% | AF106: -6.0% | AG106: 86.9
A107: 2008-03-26 | B107: 00:04:00 | C107: 315 | D107: NW | E107: 51.5 | F107: 49.4 | H107: 51.5 | I107: 55 | J107: 41.8 | K107: 41.8 | L107: 55 | M107: 49.4 | N107: =AVERAGE((E107:F107,H107:I107)) -> 51.9 | O107: 5.4% | P107: 41.8 | Q107: 12.0% | S107: 33.8 | V107: 24.93 | Y107: 15.04 | AA107: vtg
A108: 2008-03-27 | B108: 16:24:00 | C108: 33.8 | D108: NW | E108: 48.3 | F108: 49.7 | H108: 49.9 | I108: 53 | J108: 49.9 | K108: 38.6 | L108: 53 | M108: 48.3 | N108: =AVERAGE((E108:F108,H108:I108)) -> 50.2 | O108: 4.7% | P108: 49.9 | Q108: 0.4% | S108: 35.4 | V108: 28.32 | Y108: 17.14 | AA108: vtg
A109: 2008-03-28 | B109: 00:21:00 | C109: 331 | D109: NW | E109: 37 | F109: 38.1 | H109: 38.6 | I109: 41.5 | J109: 35.4 | K109: 30.6 | L109: 41.5 | M109: 37 | N109: =AVERAGE((E109:F109,H109:I109)) -> 38.8 | O109: 5.8% | P109: 35.4 | Q109: 5.6% | S109: 25.7 | V109: 20.1 | Y109: 11.23 | AA109: vtg
A110: 2008-03-29 | B110: 07:24:00 | C110: 319 | D110: W | E110: 45.1 | F110: 47.3 | H110: 46.7 | I110: 51 | J110: 41.8 | K110: 38.6 | L110: 51 | M110: 45.1 | N110: =AVERAGE((E110:F110,H110:I110)) -> 47.5 | O110: 6.2% | P110: 41.8 | Q110: 7.4% | S110: 35.4 | V110: 27.2 | Y110: 11.23 | AA110: vtg
A111: 2008-03-30 | B111: 10:09:00 | C111: 104 | D111: E | E111: 45.1 | F111: 40.6 | H111: 37 | I111: 42.5 | J111: 30.6 | K111: 32.2 | L111: 45.1 | M111: 37 | N111: =AVERAGE((E111:F111,H111:I111)) -> 41.3 | O111: 9.8% | P111: 32.2 | Q111: 16.6% | S111: 27.4 | V111: 19.45 | Y111: 7.27 | AA111: Mon
A112: 2008-03-31 | B112: 21:59:00 | C112: 307 | D112: W | E112: 35.4 | F112: 37.1 | H112: 38.6 | I112: 39 | J112: 30.6 | K112: 25.8 | L112: 39 | M112: 35.4 | N112: =AVERAGE((E112:F112,H112:I112)) -> 37.5 | O112: 4.8% | P112: 30.6 | Q112: 13.4% | S112: 24.1 | V112: 17.86 | Y112: 7.28 | AA112: vtg
A113: 2008-04-01 | B113: 06:34:00 | C113: 267 | D113: W | E113: 30.6 | F113: 32.6 | H113: 35.4 | I113: 38 | J113: 24.1 | K113: 24.1 | L113: =MAX(E113:F113,H113:I113) -> 38 | M113: =MIN(E113:F113,H113:I113) -> 30.6 | N113: =AVERAGE((E113:F113,H113:I113)) -> 34.2 | O113: =((L113-M113)/2)/N113 -> 10.8% | P113: =MAX(J113:K113) -> 24.1 | Q113: =ABS(((N113-J113))/2/K113) -> 20.9%
A114: 2008-04-02 | B114: 17:21:00 | C114: 322 | D114: NW | E114: 85.3 | F114: 86 | H114: 86.9 | I114: 86.5 | J114: 72.4 | K114: 61.1 | L114: 86.9 | M114: 85.3 | N114: =AVERAGE((E114:F114,H114:I114)) -> 86.2 | O114: 0.9% | P114: 72.4 | Q114: 11.3%
A115: 2008-04-03 | B115: 12:12:00 | C115: 303 | D115: NW | E115: 66 | F115: 61.4 | H115: 67.6 | I115: 64.4 | J115: 49.9 | K115: 54.7 | L115: 67.6 | M115: 61.4 | N115: =AVERAGE((E115:F115,H115:I115)) -> 64.9 | O115: 4.8% | P115: 54.7 | Q115: 13.7%
A116: 2008-04-04 | B116: 10:09:00 | C116: 293 | D116: SW | E116: 29 | F116: 31.7 | H116: 35.4 | I116: 33 | J116: 35.4 | K116: 25.7 | L116: 35.4 | M116: 29 | N116: =AVERAGE((E116:F116,H116:I116)) -> 32.3 | O116: 9.9% | P116: 35.4 | Q116: 6.1%
A118: Moyennes | E118: =AVERAGE(E5:E117) -> 38.38 | F118: 38.49 | G118: 33.65 | H118: 38.29 | I118: 47.96 | J118: 32.83 | K118: 29.12 | L118: 41.67 | M118: 36.46 | N118: 39.01 | O118: 7.2% | P118: 33.12 | Q118: 11.6% | R118: 23.08 | S118: 26.64 | T118: 9.6% | U118: 18.13 | V118: 20.65 | W118: 7.8% | X118: 8.78 | Y118: 9.14 | Z118: -16.1% | AB118: =AVERAGE(AB5:AB117) -> 12.92 | AC118: 7.40 | AD118: -1.5% | AE118: -0.7% | AF118: -10.0% | AG118: 34.25 | AJ118: =AVERAGE(AJ5:AJ117) -> 17.33 | AL118: =AVERAGE(AL5:AL117) -> 5% | AM118: =AVERAGE(AM5:AM117) -> 4% | AN118: =AVERAGE(AN5:AN117) -> 9%
A119: Maxi | E119: =MAX(E5:E117) -> 95 | F119: 104.9 | G119: 88.6 | H119: 96.6 | I119: 104 | J119: 85.3 | K119: 77.2 | L119: 104.9 | M119: 93.3 | N119: 98.9 | O119: 19.6% | P119: 85.3 | Q119: 39.1% | R119: 56.3 | S119: 62.8 | T119: 29.2% | U119: 49.51 | V119: 53.6 | W119: 27.7% | X119: 26.75 | Y119: 29.14 | Z119: 11.4% | AB119: =MAX(AB5:AB117) -> 29.1 | AC119: 18.3 | AD119: 18.5% | AE119: 13.3% | AF119: 4.7% | AG119: 86.90754 | AJ119: =MAX(AJ5:AJ117) -> 43.748415 | AL119: =MAX(AL5:AL117) -> 30% | AM119: =MAX(AM5:AM117) -> 13% | AN119: =MAX(AN5:AN117) -> 16%
A120: Min | E120: =MIN(E5:E117) -> 9.7 | F120: 9.8 | G120: 9.8 | H120: 11.3 | I120: 25 | J120: 6.4 | K120: 6.4 | L120: 11.3 | M120: 9.7 | N120: 10.3 | O120: 0.3% | P120: 6.4 | Q120: 0.2% | R120: 7.5 | S120: 6.4 | T120: -14.7% | U120: 5.26 | V120: 3.36 | W120: -36.1% | X120: 1.72 | Y120: 0.55 | Z120: -70.6% | AB120: =MIN(AB5:AB117) -> 4.7 | AC120: 1.5 | AD120: -24.4% | AE120: -32.4% | AF120: -40.5% | AG120: 11.20379 | AJ120: =MIN(AJ5:AJ117) -> 4.15704 | AL120: =MIN(AL5:AL117) -> -21% | AM120: =MIN(AM5:AM117) -> -8% | AN120: =MIN(AN5:AN117) -> -5%
A121: Ecart type | E121: =STDEV(E5:E117) -> 20.32 | F121: 21.60 | G121: 17.86 | H121: 20.72 | I121: 21.31 | J121: 18.20 | K121: 15.50 | L121: 22.08 | M121: 20.17 | N121: 21.12 | O121: 3.8% | P121: 18.11 | Q121: 6.8% | R121: 11.28 | S121: 13.36 | T121: 7.2% | U121: 9.68 | V121: 11.25 | W121: 9.2% | X121: 6.69 | Y121: 8.01 | Z121: 21.4% | AB121: =STDEV(AB5:AB117) -> 6.74 | AC121: 4.55 | AD121: 9.2% | AE121: 8.1% | AF121: 9.3% | AG121: 18.51 | AJ121: =STDEV(AJ5:AJ117) -> 8.69 | AL121: =STDEV(AL5:AL117) -> 7% | AM121: =STDEV(AM5:AM117) -> 4% | AN121: =STDEV(AN5:AN117) -> 4%
A122: Nb j >= 36 km/h (du 10/02/2008 au 04/04/2008) | E122: =COUNTIFS(E31:E117,">=36,0") -> 43 | F122: 43 | G122: 27 | H122: 43 | I122: 49 | J122: 33 | K122: 28 | L122: 49 | M122: 41 | N122: 43 | P122: =COUNTIFS(P31:P117,">=36,0") -> 33 | AG122: =COUNTIFS(AG31:AG117,">=36,0") -> 29 | AH122: =H122 -> 43 | AI122: =F122 -> 43
A123: Nb j >= 40 km/h | E123: =COUNTIFS(E31:E117,">=40,0") -> 37 | F123: 36 | G123: 23 | H123: 34 | I123: 40 | J123: 31 | K123: 23 | L123: 40 | M123: 32 | N123: 37 | P123: =COUNTIFS(P31:P117,">=40,0") -> 31 | AG123: =COUNTIFS(AG31:AG117,">=40,0") -> 25 | AH123: =H123 -> 34 | AI123: =F123 -> 36
A124: Nb j >= 50 km/h | E124: =COUNTIFS(E31:E117,">=50,0") -> 25 | F124: 23 | G124: 15 | H124: 25 | I124: 29 | J124: 15 | K124: 14 | L124: 29 | M124: 23 | N124: 26 | P124: =COUNTIFS(P31:P117,">=50,0") -> 16 | AG124: =COUNTIFS(AG31:AG117,">=50,0") -> 19 | AH124: 25 | AI124: 23
A125: Nb j >= 57,6 km/h | E125: =COUNTIFS(E31:E117,">=57,6") -> 16 | F125: 20 | G125: 10 | H125: 20 | I125: 20 | J125: 14 | K125: 9 | L125: 20 | M125: 16 | N125: 20 | P125: =COUNTIFS(P31:P117,">=57,6") -> 14 | AG125: =COUNTIFS(AG31:AG117,">=57,6") -> 13 | AH125: 20 | AI125: 20
A126: Nb j >= 60 km/h | E126: =COUNTIFS(E31:E117,">=60") -> 15 | F126: 18 | G126: 9 | H126: 16 | I126: 20 | J126: 12 | K126: 6 | L126: 20 | M126: 15 | N126: 17 | P126: =COUNTIFS(P31:P117,">=60") -> 12 | AG126: =COUNTIFS(AG31:AG117,">=60") -> 12 | AH126: 16 | AI126: 18
A127: Nb j >= 70 km/h | E127: =COUNTIFS(E31:E117,">=70") -> 9 | F127: 11 | G127: 3 | H127: 10 | I127: 13 | J127: 6 | K127: 1 | L127: 14 | M127: 9 | N127: 9 | P127: =COUNTIFS(P31:P117,">=70") -> 6 | AG127: =COUNTIFS(AG31:AG117,">=70") -> 6 | AH127: 10 | AI127: 11
A128: Nb j >= 75,6 km/h | E128: =COUNTIFS(E31:E117,">=75,6") -> 7 | F128: 9 | G128: 3 | H128: 8 | I128: 11 | J128: 3 | K128: 1 | L128: 11 | M128: 6 | N128: 9 | P128: =COUNTIFS(P31:P117,">=75,6") -> 3 | AG128: =COUNTIFS(AG31:AG117,">=75,6") -> 4 | AH128: 8 | AI128: 9
A129: Nb j >= 80 km/h | E129: =COUNTIFS(E31:E117,">=80") -> 5 | F129: 6 | G129: 1 | H129: 6 | I129: 9 | J129: 1 | K129: 0 | L129: 9 | M129: 5 | N129: 6 | P129: =COUNTIFS(P31:P117,">=80") -> 1 | AG129: =COUNTIFS(AG31:AG117,">=80") -> 3 | AH129: 6 | AI129: 6
A130: Nb j >= 90 km/h | E130: =COUNTIFS(E31:E117,">=90") -> 3 | F130: 4 | G130: 0 | H130: 3 | I130: 4 | J130: 0 | K130: 0 | L130: 4 | M130: 3 | N130: 3 | P130: =COUNTIFS(P31:P117,">=90") -> 0 | AG130: =COUNTIFS(AG31:AG117,">=90") -> 0 | AH130: 3 | AI130: 4
A131: Nb j >= 100,8 km/h | E131: =COUNTIFS(E31:E117,">=100,8") -> 0 | F131: 1 | G131: 0 | H131: 0 | I131: 2 | J131: 0 | K131: 0 | L131: 2 | M131: 0 | N131: 0 | P131: =COUNTIFS(P31:P117,">=100,8") -> 0 | AG131: =COUNTIFS(AG32:AG118,">=90") -> 0 | AH131: 0 | AI131: 1
A132: Nb j >= 110 km/h | E132: =COUNTIFS(E31:E117,">=110,0") -> 0 | F132: 0 | G132: 0 | H132: 0 | I132: 0 | J132: 0 | K132: 0 | L132: 0 | M132: 0 | N132: 0 | P132: =COUNTIFS(P31:P117,">=110,0") -> 0
A134: 2008-03-01
A135: Nb j >= 36 km/h | E135: =COUNTIFS(E82:E112,">=36,0") -> 22 | F135: =COUNTIFS(F82:F112,">=36,0") -> 23 | G135: 13 | H135: 23 | I135: 25 | J135: 18 | K135: 18
A136: Nb j >= 40 km/h | E136: =COUNTIFS(E82:E112,">=40,0") -> 21 | F136: =COUNTIFS(F82:F112,">=40,0") -> 21 | G136: 13 | H136: 20 | I136: 22 | J136: 18 | K136: 15
A137: Nb j >= 50 km/h | E137: =COUNTIFS(E82:E112,">=50,0") -> 16 | F137: =COUNTIFS(F82:F112,">=50,0") -> 14 | G137: 10 | H137: 16 | I137: 19 | J137: 12 | K137: 10
A138: Nb j >= 57,6 km/h | E138: =COUNTIFS(E82:E112,">=57,6") -> 12 | F138: =COUNTIFS(F82:F112,">=57,6") -> 14 | G138: 8 | H138: 14 | I138: 14 | J138: 11 | K138: 7
A139: Nb j >= 60 km/h | E139: =COUNTIFS(E82:E112,">=60") -> 11 | F139: =COUNTIFS(F82:F112,">=60") -> 13 | G139: 7 | H139: 12 | I139: 14 | J139: 9 | K139: 4
A140: Nb j >= 70 km/h | E140: =COUNTIFS(E82:E112,">=70") -> 7 | F140: =COUNTIFS(F82:F112,">=70") -> 9 | G140: 2 | H140: 7 | I140: 10 | J140: 4 | K140: 1
A141: Nb j >= 75,6 km/h | E141: =COUNTIFS(E82:E112,">=75,6") -> 5 | F141: =COUNTIFS(F82:F112,">=75,6") -> 7 | G141: 2 | H141: 6 | I141: 8 | J141: 3 | K141: 1
A142: Nb j >= 80 km/h | E142: =COUNTIFS(E82:E112,">=80") -> 3 | F142: =COUNTIFS(F82:F112,">=80") -> 4 | G142: 1 | H142: 4 | I142: 7 | J142: 1 | K142: 0
A143: Nb j >= 90 km/h | E143: =COUNTIFS(E82:E112,">=90") -> 3 | F143: =COUNTIFS(F82:F112,">=90") -> 3 | G143: 0 | H143: 3 | I143: 3 | J143: 0 | K143: 0
A144: Nb j >= 100,8 km/h | E144: =COUNTIFS(E82:E112,">=100,8") -> 0 | F144: =COUNTIFS(F82:F112,">=100,8") -> 1 | G144: 0 | H144: 0 | I144: 2 | J144: 0 | K144: 0
A145: Nb j >= 110 km/h | E145: =COUNTIFS(E82:E112,">=110,0") -> 0 | F145: =COUNTIFS(F82:F112,">=110,0") -> 0 | G145: 0 | H145: 0 | I145: 0 | J145: 0 | K145: 0
A149: 2008-04-05 | B149: 14:27:00 | C149: 257 | D149: W | E149: 33.8 | F149: 31.6 | H149: 37 | I149: 37.5 | J149: 29 | K149: 30.6 | L149: =MAX(E149,H149) -> 37 | M149: =MIN(E149,H149) -> 33.8 | N149: =AVERAGE((E149,H149)) -> 35.4 | O149: =((L149-M149)/2)/N149 -> 4.5% | P149: =MAX(J149:K149) -> 30.6 | Q149: =ABS(((N149-J149))/2/K149) -> 10.5% | AA149: Vtg | AG149: =((0.3264+(H149/3.6)*0.8875))*3.6 -> 34.0
A150: 2008-04-06 | B150: 16:29:00 | C150: 277 | D150: W | E150: 49.9 | F150: 52.2 | H150: 56.3 | I150: 56.5 | J150: 48.3 | K150: 40.2 | L150: =MAX(E150,H150) -> 56.3 | M150: =MIN(E150,H150) -> 49.9 | N150: =AVERAGE((E150,H150)) -> 53.1 | O150: =((L150-M150)/2)/N150 -> 6.0% | P150: =MAX(J150:K150) -> 48.3 | Q150: =ABS(((N150-J150))/2/K150) -> 6.0% | AA150: Vtg | AG150: =((0.3264+(H150/3.6)*0.8875))*3.6 -> 51.1
A151: 2008-04-07 | B151: 09:21:00 | C151: 316 | D151: NW | E151: 56.3 | F151: 55.2 | H151: 64.4 | I151: 68 | J151: 48.3 | K151: 46.7 | L151: =MAX(E151,H151) -> 64.4 | M151: =MIN(E151,H151) -> 56.3 | N151: =AVERAGE((E151,H151)) -> 60.4 | O151: 6.7% | P151: 48.3 | Q151: =ABS(((N151-J151))/2/K151) -> 12.9%
A152: 2008-04-08 | B152: 14:31:00 | C152: 111 | D152: E | E152: 26.7 | F152: 25.5 | H152: 22.5 | I152: 29 | J152: 20.9 | K152: 17.7 | L152: 26.7 | M152: 22.5 | N152: =AVERAGE((E152,H152)) -> 24.6 | O152: =((L152-M152)/2)/N152 -> 8.5% | P152: =MAX(J152:K152) -> 20.9 | Q152: 10.5%
A153: 2008-04-09 | B153: 09:38:00 | C153: 68 | D153: NE | E153: 38.6 | F153: 32.9 | H153: 32.2 | I153: 38.5 | J153: 30.6 | K153: 25.7 | L153: 38.6 | M153: 32.2 | N153: =AVERAGE((E153,H153)) -> 35.4 | O153: 9.0% | P153: 30.6 | Q153: 9.3%
A154: 2008-04-10 | B154: 10:35:00 | C154: 74 | D154: NE | E154: 37 | F154: 29.7 | H154: 33.8 | I154: 37 | J154: 30.6 | K154: 25.7 | L154: 37 | M154: 33.8 | N154: =AVERAGE((E154,H154)) -> 35.4 | O154: 4.5% | P154: 30.6 | Q154: 9.3%
A155: 2008-04-11 | B155: 11:56:00 | C155: 245 | D155: SW | E155: 45.1 | F155: 38.4 | H155: 49.9 | I155: 56.5 | J155: 33.8 | K155: 30.6 | L155: 49.9 | M155: 45.1 | N155: =AVERAGE((E155,H155)) -> 47.5 | O155: =((L155-M155)/2)/N155 -> 5.1% | P155: =MAX(J155:K155) -> 33.8 | Q155: =ABS(((N155-J155))/2/K155) -> 22.4%
A156: 2008-04-12 | B156: 14:16:00 | C156: 225 | D156: W | E156: 53.1 | F156: 58.3 | H156: 59.5 | I156: 61.5 | J156: 51.5 | K156: 46.7 | L156: =MAX(E156,H156) -> 59.5 | M156: =MIN(E156,H156) -> 53.1 | N156: =AVERAGE((E156,H156)) -> 56.3 | O156: 5.7% | P156: 51.5 | Q156: 5.1%
A157: 2008-04-13 | B157: 01:28:00 | C157: 276 | D157: W | E157: 51.5 | F157: 48.7 | H157: 51.5 | I157: 56 | J157: 41.8 | K157: 37 | L157: 51.5 | M157: 51.5 | N157: =AVERAGE((E157,H157)) -> 51.5 | O157: 0.0% | P157: 41.8 | Q157: 13.1%
A158: 2008-04-14 | B158: 16:37:00 | C158: 305 | D158: W | E158: 64.4 | F158: 74.2 | H158: 67.6 | I158: 71 | J158: 66 | K158: 57.9 | L158: 67.6 | M158: 64.4 | N158: =AVERAGE((E158,H158)) -> 66.0 | O158: 2.4% | P158: 66 | Q158: 0.0%
A159: 2008-04-15 | B159: 10:28:00 | C159: 287 | D159: NW | E159: 64.4 | F159: 67.4 | H159: 66 | I159: 73 | J159: 62.8 | K159: 53.1 | L159: 66 | M159: 64.4 | N159: =AVERAGE((E159,H159)) -> 65.2 | O159: 1.2% | P159: 62.8 | Q159: 2.3%
A160: 2008-04-16 | B160: 04:37:00 | C160: 301 | D160: W | E160: 29 | F160: 29.6 | H160: 32.2 | I160: 37 | J160: 29 | K160: 24.1 | L160: 32.2 | M160: 29 | N160: =AVERAGE((E160,H160)) -> 30.6 | O160: 5.2% | P160: 29 | Q160: 3.3%
A161: 2008-04-17 | B161: 12:23:00 | C161: 77 | D161: ENE | E161: 54.7 | F161: 39.7 | H161: 41.8 | I161: 47.5 | J161: 38.6 | K161: 41.8 | L161: =MAX(E161,H161) -> 54.7 | M161: =MIN(E161,H161) -> 41.8 | N161: =AVERAGE((E161,H161)) -> 48.3 | O161: =((L161-M161)/2)/N161 -> 13.4% | P161: =MAX(J161:K161) -> 41.8 | Q161: =ABS(((N161-J161))/2/K161) -> 11.5%
A162: 2008-04-18 | B162: 15:06:00 | C162: 73 | D162: ENE | E162: 56.3 | F162: 46.5 | H162: 43.5 | I162: 55 | J162: 41.8 | K162: 37 | L162: 56.3 | M162: 43.5 | N162: =AVERAGE((E162,H162)) -> 49.9 | O162: 12.8% | P162: 41.8 | Q162: 10.9%
A163: 2008-04-19 | B163: 12:23:00 | C163: 101 | D163: WSW | E163: 30.6 | F163: 27.9 | H163: 33.8 | I163: 32.5 | J163: 29 | K163: 29 | L163: 33.8 | M163: 30.6 | N163: =AVERAGE((E163,H163)) -> 32.2 | O163: 5.0% | P163: 29 | Q163: 5.5%
A164: 2008-04-20 | B164: 10:31:00 | C164: 74 | D164: NE | E164: 45.1 | F164: 34.4 | H164: 35.4 | I164: 42.5 | J164: 33.8 | K164: 30.6 | L164: 45.1 | M164: 35.4 | N164: =AVERAGE((E164,H164)) -> 40.3 | O164: 12.0% | P164: 33.8 | Q164: 10.5%
A165: 2008-04-21 | B165: 15:30:00 | C165: 278 | D165: NW | E165: 40.2 | F165: 37.5 | H165: 41.8 | I165: 44.5 | J165: 37 | K165: 30.6 | L165: 41.8 | M165: 40.2 | N165: =AVERAGE((E165,H165)) -> 41.0 | O165: 2.0% | P165: 37 | Q165: 6.5%
A166: 2008-04-22 | B166: 15:10:00 | C166: 289 | D166: NW | E166: 74 | F166: 72.2 | H166: 72.4 | I166: 82 | J166: 66 | K166: 61.1 | L166: 74 | M166: 72.4 | N166: =AVERAGE((E166,H166)) -> 73.2 | O166: 1.1% | P166: 66 | Q166: 5.9%
A167: 2008-04-23 | B167: 01:06:00 | C167: 309 | D167: NW | E167: 37 | F167: 36.8 | H167: 37 | I167: 37 | J167: 38.6 | K167: 35.4 | L167: 37 | M167: 37 | N167: =AVERAGE((E167,H167)) -> 37.0 | O167: 0.0% | P167: 38.6 | Q167: 2.3%
A168: 2008-04-24 | B168: 23:38:00 | C168: 302 | D168: NW | E168: 38.6 | F168: 40.1 | H168: 40.2 | I168: 42 | J168: 33.8 | K168: 24.1 | L168: 40.2 | M168: 38.6 | N168: =AVERAGE((E168,H168)) -> 39.4 | O168: 2.0% | P168: 33.8 | Q168: 11.6%
A169: 2008-04-25 | B169: 16:59:00 | C169: 282 | D169: SSW | E169: 33.8 | F169: 31.9 | H169: 35.4 | I169: 36 | J169: 32.2 | K169: 30.6 | L169: 35.4 | M169: 33.8 | N169: =AVERAGE((E169,H169)) -> 34.6 | O169: 2.3% | P169: 32.2 | Q169: 3.9%
A170: 2008-04-26 | B170: 10:13:00 | C170: 59 | D170: ENE | E170: 37 | F170: 31.1 | H170: 30.6 | I170: 35 | J170: 30.6 | K170: 25.7 | L170: 37 | M170: 30.6 | N170: =AVERAGE((E170,H170)) -> 33.8 | O170: 9.5% | P170: 30.6 | Q170: 6.2%
A171: 2008-04-27 | B171: 15:01:00 | C171: 218 | D171: SW | E171: 30.6 | F171: 26.9 | H171: 33.8 | I171: 34 | J171: 30.6 | K171: 30.6 | L171: 33.8 | M171: 30.6 | N171: =AVERAGE((E171,H171)) -> 32.2 | O171: 5.0% | P171: 30.6 | Q171: 2.6%
A172: 2008-04-28 | B172: 09:47:00 | C172: 221 | D172: S | E172: 25.7 | F172: 24.6 | H172: 29 | I172: 30.6 | J172: 25.7 | K172: 19.3 | L172: 29 | M172: 25.7 | N172: =AVERAGE((E172,H172)) -> 27.4 | O172: 6.0% | P172: 25.7 | Q172: 4.3%
A173: 2008-04-29 | B173: 12:09:00 | C173: 322 | D173: W | E173: 45.1 | F173: 44.1 | H173: 46.7 | I173: 49 | J173: 43.4 | K173: 38.6 | L173: 46.7 | M173: 45.1 | N173: =AVERAGE((E173,H173)) -> 45.9 | O173: 1.7% | P173: 43.4 | Q173: 3.2%
A174: 2008-04-30 | B174: 16:32:00 | C174: 59 | D174: NNW | E174: 25.7 | F174: 20.1 | H174: 24.1 | I174: 28 | J174: 20.9 | K174: 17.7 | L174: 25.7 | M174: 24.1 | N174: =AVERAGE((E174,H174)) -> 24.9 | O174: 3.2% | P174: 20.9 | Q174: 11.3%
A175: 2008-05-01 | B175: 11:46:00 | C175: 296 | D175: W | E175: 30.6 | F175: 30.8 | H175: 33.8 | I175: 35 | J175: 30.6 | K175: 24.1 | L175: 33.8 | M175: 30.6 | N175: =AVERAGE((E175,H175)) -> 32.2 | O175: 5.0% | P175: 30.6 | Q175: 3.3%
A176: 2008-05-02 | B176: 14:40:00 | C176: 219 | D176: S | E176: 30.6 | F176: 27.4 | H176: 33.8 | I176: 32 | J176: 25.7 | K176: 29 | L176: 33.8 | M176: 30.6 | N176: =AVERAGE((E176,H176)) -> 32.2 | O176: 5.0% | P176: 29 | Q176: 11.2%
A177: 2008-05-03 | B177: 15:00:00 | C177: 226 | D177: S | E177: 30.6 | F177: 28.2 | H177: 33.8 | I177: 31 | J177: 29 | K177: 22.5 | L177: 33.8 | M177: 30.6 | N177: =AVERAGE((E177,H177)) -> 32.2 | O177: 5.0% | P177: 29 | Q177: 7.1%
A178: 2008-05-04 | B178: 11:28:00 | C178: 206 | D178: SW | E178: 30.6 | F178: 28.6 | H178: 33.8 | I178: 32.5 | J178: 25.7 | K178: 29 | L178: 33.8 | M178: 30.6 | N178: =AVERAGE((E178,H178)) -> 32.2 | O178: 5.0% | P178: 29 | Q178: 11.2%
A179: 2008-05-05 | B179: 16:36:00 | C179: 73 | D179: NE | E179: 40.2 | F179: 32.8 | H179: 33.8 | I179: 41 | J179: 30.6 | K179: 24.1 | L179: 40.2 | M179: 33.8 | N179: =AVERAGE((E179,H179)) -> 37.0 | O179: 8.6% | P179: 30.6 | Q179: 13.3%
A180: 2008-05-06 | B180: 10:39:00 | C180: 84 | D180: SE | E180: 38.6 | F180: 31.3 | H180: 38.6 | I180: 35 | J180: 29 | K180: 25.7 | L180: =MAX(E180,H180) -> 38.6 | M180: =MIN(E180,H180) -> 38.6 | N180: =AVERAGE((E180,H180)) -> 38.6 | O180: =((L180-M180)/2)/N180 -> 0.0% | P180: =MAX(J180:K180) -> 29 | Q180: =ABS(((N180-J180))/2/K180) -> 18.7%
A181: 2008-05-07 | B181: 13:14:00 | C181: 52 | D181: NE | E181: 35.4 | F181: 29.4 | H181: 35.4 | I181: 34 | J181: 29 | K181: 25.7 | L181: 35.4 | M181: 35.4 | N181: =AVERAGE((E181,H181)) -> 35.4 | O181: 0.0% | P181: 29 | Q181: 12.5%
A182: 2008-05-08
A187: Moyennes | E187: =AVERAGE(E149:E186) -> 41.24 | F187: =AVERAGE(F149:F186) -> 38.36 | H187: =AVERAGE(H149:H186) -> 41.25 | I187: 44.17 | J187: 36.19 | K187: 32.37 | L187: 43.23 | M187: 39.26 | N187: 41.25 | O187: 5.0% | P187: 36.53 | Q187: 8.4% | AB187: =AVERAGE(AB149:AB186) ->  | AG187: 42.58 | AJ187: =AVERAGE(AJ149:AJ186) ->  | AL187: =AVERAGE(AL149:AL186) ->  | AM187: =AVERAGE(AM149:AM186) ->  | AN187: =AVERAGE(AN149:AN186) -> 
A188: Maxi | E188: =MAX(E149:E186) -> 74 | F188: =MAX(F149:F186) -> 74.2 | H188: =MAX(H149:H186) -> 72.4 | I188: 82 | J188: 66 | K188: 61.1 | L188: 74 | M188: 72.4 | N188: 73.2 | O188: 13.4% | P188: 66 | Q188: 22.4% | R188: 0 | S188: 0 | T188: 0.0% | U188: 0 | V188: 0 | W188: 0.0% | X188: 0 | Y188: 0.00 | Z188: 0.0% | AB188: =MAX(AB149:AB186) -> 0 | AC188: 0 | AD188: 0.0% | AE188: 0.0% | AF188: 0.0% | AG188: 51.1 | AJ188: =MAX(AJ149:AJ186) -> 0.0 | AL188: =MAX(AL149:AL186) -> 0% | AM188: =MAX(AM149:AM186) -> 0% | AN188: =MAX(AN149:AN186) -> 0%
A189: Min | E189: =MIN(E149:E186) -> 25.7 | F189: =MIN(F149:F186) -> 20.1 | H189: =MIN(H149:H186) -> 22.5 | I189: 28 | J189: 20.9 | K189: 17.7 | L189: 25.7 | M189: 22.5 | N189: 24.6 | O189: 0.0% | P189: 20.9 | Q189: 0.0% | R189: 0 | S189: 0 | T189: 0.0% | U189: 0 | V189: 0 | W189: 0.0% | X189: 0 | Y189: 0.00 | Z189: 0.0% | AB189: =MIN(AB149:AB186) -> 0 | AC189: 0 | AD189: 0.0% | AE189: 0.0% | AF189: 0.0% | AG189: 34.0 | AJ189: =MIN(AJ149:AJ186) -> 0.0 | AL189: =MIN(AL149:AL186) -> 0% | AM189: =MIN(AM149:AM186) -> 0% | AN189: =MIN(AN149:AN186) -> 0%
A190: Ecart type | E190: =STDEV(E149:E186) -> 12.36 | F190: =STDEV(F149:F186) -> 13.88 | H190: =STDEV(H149:H186) -> 12.81 | I190: 14.24 | J190: 11.82 | K190: 10.91 | L190: 12.69 | M190: 12.16 | N190: 12.32 | O190: 3.6% | P190: 11.66 | Q190: 5.0% | AB190: =STDEV(AB149:AB186) ->  | AG190: 12.11 | AJ190: =STDEV(AJ149:AJ186) ->  | AL190: =STDEV(AL149:AL186) ->  | AM190: =STDEV(AM149:AM186) ->  | AN190: =STDEV(AN149:AN186) -> 
A191: Nb j >= 36 km/h | E191: =COUNTIFS(E149:E186,">=36,0") -> 20 | F191: =COUNTIFS(F149:F186,">=36,0") -> 14 | H191: =COUNTIFS(H149:H186,">=36,0") -> 16 | I191: 21 | J191: 12 | K191: 10 | L191: 21 | M191: 15 | N191: 17 | P191: =COUNTIFS(P149:P186,">=36,0") -> 12 | AG191: =COUNTIFS(AG149:AG186,">=36,0") -> 1 | AH191: =H191 -> 16 | AI191: =F191 -> 14
A192: Nb j >= 40 km/h | E192: =COUNTIFS(E149:E186,">=40,0") -> 14 | F192: =COUNTIFS(F149:F186,">=40,0") -> 10 | H192: =COUNTIFS(H149:H186,">=40,0") -> 13 | I192: 15 | J192: 9 | K192: 7 | L192: 15 | M192: 12 | N192: 13 | P192: =COUNTIFS(P149:P186,">=40,0") -> 10 | AG192: =COUNTIFS(AG149:AG186,">=40,0") -> 1 | AH192: =H192 -> 13 | AI192: =F192 -> 10
A193: Nb j >= 50 km/h | E193: =COUNTIFS(E149:E186,">=50,0") -> 8 | F193: =COUNTIFS(F149:F186,">=50,0") -> 6 | H193: =COUNTIFS(H149:H186,">=50,0") -> 7 | I193: 9 | J193: 4 | K193: 3 | L193: 9 | M193: 6 | N193: 7 | P193: =COUNTIFS(P149:P186,">=50,0") -> 4 | AG193: =COUNTIFS(AG149:AG186,">=50,0") -> 1 | AH193: 7 | AI193: 6
A194: Nb j >= 57,6 km/h | E194: =COUNTIFS(E149:E186,">=57,6") -> 3 | F194: =COUNTIFS(F149:F186,">=57,6") -> 4 | H194: =COUNTIFS(H149:H186,">=57,6") -> 5 | I194: 5 | J194: 3 | K194: 2 | L194: 5 | M194: 3 | N194: 4 | P194: =COUNTIFS(P149:P186,">=57,6") -> 3 | AG194: =COUNTIFS(AG149:AG186,">=57,6") -> 0 | AH194: 5 | AI194: 4
A195: Nb j >= 60 km/h | E195: =COUNTIFS(E149:E186,">=60") -> 3 | F195: =COUNTIFS(F149:F186,">=60") -> 3 | H195: =COUNTIFS(H149:H186,">=60") -> 4 | I195: 5 | J195: 3 | K195: 1 | L195: 4 | M195: 3 | N195: 4 | P195: =COUNTIFS(P149:P186,">=60") -> 3 | AG195: =COUNTIFS(AG149:AG186,">=60") -> 0 | AH195: 4 | AI195: 3
A196: Nb j >= 70 km/h | E196: =COUNTIFS(E149:E186,">=70") -> 1 | F196: =COUNTIFS(F149:F186,">=70") -> 2 | H196: 1 | I196: 3 | J196: 0 | K196: 0 | L196: 1 | M196: 1 | N196: 1 | P196: 0 | AG196: =COUNTIFS(AG149:AG186,">=149") -> 0 | AH196: 1 | AI196: 2
A197: Nb j >= 75,6 km/h | E197: =COUNTIFS(E149:E186,">=75,6") -> 0 | F197: =COUNTIFS(F149:F186,">=75,6") -> 0 | H197: =COUNTIFS(H149:H186,">=75,6") -> 0 | I197: 1 | J197: 0 | K197: 0 | L197: 0 | M197: 0 | N197: 0 | P197: =COUNTIFS(P149:P186,">=75,6") -> 0 | AG197: =COUNTIFS(AG149:AG186,">=75,6") -> 0 | AH197: 0 | AI197: 0
A198: Nb j >= 80 km/h | E198: =COUNTIFS(E149:E186,">=80") -> 0 | F198: =COUNTIFS(F149:F186,">=80") -> 0 | H198: =COUNTIFS(H149:H186,">=80") -> 0 | I198: 1 | J198: 0 | K198: 0 | L198: 0 | M198: 0 | N198: 0 | P198: =COUNTIFS(P149:P186,">=80") -> 0 | AG198: =COUNTIFS(AG149:AG186,">=80") -> 0 | AH198: 0 | AI198: 0
A199: Nb j >= 90 km/h | E199: =COUNTIFS(E149:E186,">=90") -> 0 | F199: =COUNTIFS(F149:F186,">=90") -> 0 | H199: =COUNTIFS(H149:H186,">=90") -> 0 | I199: 0 | J199: 0 | K199: 0 | L199: 0 | M199: 0 | N199: 0 | P199: =COUNTIFS(P149:P186,">=90") -> 0 | AG199: =COUNTIFS(AG149:AG186,">=90") -> 0 | AH199: 0 | AI199: 0
A200: Nb j >= 100,8 km/h | E200: =COUNTIFS(E149:E186,">=100,8") -> 0 | F200: =COUNTIFS(F149:F186,">=100,8") -> 0 | H200: =COUNTIFS(H149:H186,">=100,8") -> 0 | I200: 0 | J200: 0 | K200: 0 | L200: 0 | M200: 0 | N200: 0 | P200: =COUNTIFS(P149:P186,">=100,8") -> 0 | AG200: =COUNTIFS(AG71:AG187,">=90") -> 0 | AH200: =H1179 -> 0 | AI200: =F1179 -> 0
A201: Nb j >= 110 km/h | E201: =COUNTIFS(E149:E186,">=110,0") -> 0 | F201: =COUNTIFS(F149:F186,">=110,0") -> 0 | H201: =COUNTIFS(H149:H186,">=110,0") -> 0 | I201: 0 | J201: 0 | K201: 0 | L201: 0 | M201: 0 | N201: 0 | P201: =COUNTIFS(P149:P186,">=110,0") -> 0
